Workbook

Sheet Interfaz
C5: POBLACIÓN ASIGNADA SEGÚN CENSOS INEI - RENIEC - PN - CNV - 2013
C10: RED INTEGRADA DE SALUD HUAURA OYÓN
A22: Elaboración: Área de Estadística - RIS Huaura Oyón.
A23: NOTA: LA POBLACION ESTIMADA DE EDADES SIMPLES Y GRUPOS DE EDAD DE DISTRITOS, CORRESPONDEN A CIFRAS REFERENCIALES HASTA OBTENER LAS CIFRAS DE LAS PROYECCIONES DEL INEI
A26: OFICINA DE GESTION DE LA INFORMACIÓN - MINISTERIO DE SALUD
R27: Versión1.030

Sheet Poblacion
C1: 1 | D1: 2 | E1: 3 | F1: 4 | G1: 5 | H1: 6 | I1: 7 | J1: 8 | K1: 9 | L1: 10 | M1: 11 | N1: 12 | O1: 13 | P1: 14 | Q1: 15 | R1: 16 | S1: 17 | T1: 18 | U1: 19 | V1: 20 | W1: 21 | X1: 22 | Y1: 23 | Z1: 24 | AA1: 25 | AB1: 26 | AC1: 27 | AD1: 28 | AE1: 29 | AF1: 30 | AG1: 31 | AH1: 32 | AI1: 33 | AJ1: 34 | AK1: 35 | AL1: 36 | AM1: 37 | AN1: 38 | AO1: 39 | AP1: 40 | AQ1: 41 | AR1: 42 | AS1: 43 | AT1: 44 | AU1: 45 | AV1: 46 | AW1: 47 | AX1: 48 | AY1: 49 | BC1: 77 | BD1: 78 | BE1: 79 | BF1: 80 | BG1: 81 | BH1: 82 | BI1: 83 | BJ1: 84 | BK1: 85 | BL1: 86 | BM1: 87 | BN1: 88 | BO1: 89 | BP1: 90 | BQ1: 91 | BR1: 92 | BS1: 93 | BT1: 94 | BU1: 95 | BV1: 96 | BW1: 97 | BX1: 98 | BY1: 99 | BZ1: 106 | CA1: 107 | CB1: 108 | CC1: 109 | CD1: 110 | CE1: 111
C5: N° | E5: DIRECCION DE SALUD | F5: TOTAL GENERAL | H5: TOTAL MASCULINO | I5: TOTAL FEMENINO | K5: EDAD | M5: EDAD | O5: EDAD | Q5: EDAD | S5: EDAD | U5: EDAD | W5: EDAD | Y5: EDAD | AA5: EDAD | AC5: EDAD | AE5: EDAD | AG5: EDAD | AI5: EDAD | AK5: EDAD | AM5: EDAD | AO5: EDAD | AQ5: EDAD | AS5: NACIMIENTOS | AT5: 28 DIAS | AU5: POBLACION FEMENINA TOTAL | AV5: POBLACION FEMENINA
A6: UBIGEO | E6: PROVINCIA | K6: <5 | M6: 5 - 9 | O6: 10 - 14 | Q6: 15 - 19 | S6: 20 - 24 | U6: 25 - 29 | W6: 30 - 34 | Y6: 35 - 39 | AA6: 40 - 44 | AC6: 45 - 49 | AE6: 50 - 54 | AG6: 55 - 59 | AI6: 60 - 64 | AK6: 65 - 69 | AM6: 70- 74 | AO6: 75 - 79 | AQ6: 80 - + | AV6: 10-14 | AW6: 15-19 | AX6: 20-49 | AY6: GESTANTES ESPERADAS
B7: Microredes | D7: RENAES | E7: DISTRITO | K7: M | L7: F | M7: M | N7: F | O7: M | P7: F | Q7: M | R7: F | S7: M | T7: F | U7: M | V7: F | W7: M | X7: F | Y7: M | Z7: F | AA7: M | AB7: F | AC7: M | AD7: F | AE7: M | AF7: F | AG7: M | AH7: F | AI7: M | AJ7: F | AK7: M | AL7: F | AM7: M | AN7: F | AO7: M | AP7: F | AQ7: M | AR7: F
A8: 150000 | C8: 1 | E8: RED HUAURA - OYON | F8: 238702 | H8: 118193.2953 | I8: 120508.7047 | K8: 10220.39115 | L8: 10420.60885 | M8: 10392.2082 | N8: 10595.7918 | O8: 11601.3645 | P8: 11828.6355 | Q8: 11165.13735 | R8: 11383.86265 | S8: 10210.9833 | T8: 10411.0167 | U8: 9008.7591 | V8: 9185.2409 | W8: 8701.27095 | X8: 8871.72905 | Y8: 8287.8207 | Z8: 8450.1793 | AA8: 7197.99555 | AB8: 7339.00445 | AC8: 6649.36935 | AD8: 6779.63065 | AE8: 5694.225 | AF8: 5805.775 | AG8: 4852.47 | AH8: 4947.53 | AI8: 4021.6083 | AJ8: 4100.3917 | AK8: 3330.3789 | AL8: 3395.6211 | AM8: 2842.65615 | AN8: 2898.34385 | AO8: 2009.81385 | AP8: 2049.18615 | AQ8: 2006.84295 | AR8: 2046.15705 | AS8: 4452 | AT8: 335 | AU8: 118031 | AV8: 11363 | AW8: 11000 | AX8: 50012 | AY8: 5514
A9: 150800 | C9: 2 | D9: 150800 | E9: PROVINCIA HUAURA | F9: 215138 | H9: 106525.5807 | I9: 108612.4193 | K9: 8995.39005 | L9: 9171.60995 | M9: 9163.74105 | N9: 9343.25895 | O9: 10346.15925 | P9: 10548.84075 | Q9: 10190.68215 | R9: 10390.31785 | S9: 9335.06295 | T9: 9517.93705 | U9: 8115.5085 | V9: 8274.4915 | W9: 7831.78755 | X9: 7985.21245 | Y9: 7406.4537 | Z9: 7551.5463 | AA9: 6543.40725 | AB9: 6671.59275 | AC9: 6022.0143 | AD9: 6139.9857 | AE9: 5208.978 | AF9: 5311.022 | AG9: 4447.93245 | AH9: 4535.06755 | AI9: 3699.7608 | AJ9: 3772.2392 | AK9: 3004.5702 | AL9: 3063.4298 | AM9: 2574.28485 | AN9: 2624.71515 | AO9: 1797.88965 | AP9: 1833.11035 | AQ9: 1841.958 | AR9: 1878.042 | AS9: 3915 | AT9: 295 | AU9: 107054 | AV9: 10158 | AW9: 10056 | AX9: 45781 | AY9: 4849
A10: 150801 | C10: 3 | D10: 150802 | E10: DISTRITO HUACHO | F10: 58252 | H10: 28843.4778 | I10: 29408.5222 | K10: 2175.6891 | L10: 2218.3109 | M10: 2194.99995 | N10: 2238.00005 | O10: 2550.0225 | P10: 2599.9775 | Q10: 2561.41095 | R10: 2611.58905 | S10: 2448.51675 | T10: 2496.48325 | U10: 2136.57225 | V10: 2178.42775 | W10: 2074.18335 | X10: 2114.81665 | Y10: 2034.0762 | Z10: 2073.9238 | AA10: 1867.21065 | AB10: 1903.78935 | AC10: 1768.6758 | AD10: 1803.3242 | AE10: 1639.9368 | AF10: 1672.0632 | AG10: 1376.517 | AH10: 1403.483 | AI10: 1121.0196 | AJ10: 1142.9804 | AK10: 924.9402 | AL10: 943.0598 | AM10: 794.71575 | AN10: 810.28425 | AO10: 578.3352 | AP10: 589.6648 | AQ10: 596.65575 | AR10: 608.34425 | AS10: 964 | AT10: 73 | AU10: 29892 | AV10: 2582 | AW10: 2549 | AX10: 12909 | AY10: 1194
B11: 00 | C11: 4 | D11: 7639 | E11: HOSPITAL DOCENTE HUACHO | F11: 44854 | H11: 22209.4581 | I11: 22644.5419 | K11: 1675.09245 | L11: 1707.90755 | M11: 1689.94695 | N11: 1723.05305 | O11: 1963.26975 | P11: 2001.73025 | Q11: 1971.6873 | R11: 2010.3127 | S11: 1885.5312 | T11: 1922.4688 | U11: 1645.8786 | V11: 1678.1214 | W11: 1597.3539 | X11: 1628.6461 | Y11: 1566.15945 | Z11: 1596.84055 | AA11: 1437.9156 | AB11: 1466.0844 | AC11: 1361.6625 | AD11: 1388.3375 | AE11: 1263.12765 | AF11: 1287.87235 | AG11: 1060.11615 | AH11: 1080.88385 | AI11: 863.04645 | AJ11: 879.95355 | AK11: 712.0257 | AL11: 725.9743 | AM11: 612.0054 | AN11: 623.9946 | AO11: 445.13985 | AP11: 453.86015 | AQ11: 459.4992 | AR11: 468.5008 | AS11: 742 | AT11: 56 | AU11: 23017 | AV11: 1988 | AW11: 1963 | AX11: 9940 | AY11: 919
B12: 02 | C12: 5 | D12: 5679 | E12: CENTRO SALUD MANZANARES | F12: 13398 | H12: 6634.0197 | I12: 6763.9803 | K12: 500.59665 | L12: 510.40335 | M12: 505.053 | N12: 514.947 | O12: 586.75275 | P12: 598.24725 | Q12: 589.72365 | R12: 601.27635 | S12: 562.98555 | T12: 574.01445 | U12: 490.69365 | V12: 500.30635 | W12: 476.82945 | X12: 486.17055 | Y12: 467.91675 | Z12: 477.08325 | AA12: 429.29505 | AB12: 437.70495 | AC12: 407.0133 | AD12: 414.9867 | AE12: 376.80915 | AF12: 384.19085 | AG12: 316.40085 | AH12: 322.59915 | AI12: 257.97315 | AJ12: 263.02685 | AK12: 212.9145 | AL12: 217.0855 | AM12: 182.71035 | AN12: 186.28965 | AO12: 133.19535 | AP12: 135.80465 | AQ12: 137.15655 | AR12: 139.84345 | AS12: 222 | AT12: 17 | AU12: 6875 | AV12: 594 | AW12: 586 | AX12: 2969 | AY12: 275
A13: 150802 | C13: 6 | D13: 150802 | E13: DISTRITO AMBAR | F13: 2785 | H13: 1378.99275 | I13: 1406.00725 | K13: 138.14685 | L13: 140.85315 | M13: 177.75885 | N13: 181.24115 | O13: 155.4771 | P13: 158.5229 | Q13: 108.933 | R13: 111.067 | S13: 107.9427 | T13: 110.0573 | U13: 84.1755 | V13: 85.8245 | W13: 87.1464 | X13: 88.8536 | Y13: 80.2143 | Z13: 81.7857 | AA13: 66.84525 | AB13: 68.15475 | AC13: 76.74825 | AD13: 78.25175 | AE13: 65.85495 | AF13: 67.14505 | AG13: 53.4762 | AH13: 54.5238 | AI13: 50.01015 | AJ13: 50.98985 | AK13: 45.05865 | AL13: 45.94135 | AM13: 33.6702 | AN13: 34.3298 | AO13: 22.28175 | AP13: 22.71825 | AQ13: 25.25265 | AR13: 25.74735 | AS13: 43 | AT13: 3 | AU13: 1299 | AV13: 141 | AW13: 103 | AX13: 483 | AY13: 53
B14: 01 | C14: 7 | D14: 5680 | E14: CENTRO SALUD AMBAR | F14: 1766 | H14: 874.4349 | I14: 891.5651 | K14: 87.64155 | L14: 89.35845 | M14: 112.8942 | N14: 115.1058 | O14: 98.53485 | P14: 100.46515 | Q14: 69.321 | R14: 70.679 | S14: 68.3307 | T14: 69.6693 | U14: 52.98105 | V14: 54.01895 | W14: 55.4568 | X14: 56.5432 | Y14: 51.00045 | Z14: 51.99955 | AA14: 42.5829 | AB14: 43.4171 | AC14: 48.5247 | AD14: 49.4753 | AE14: 41.5926 | AF14: 42.4074 | AG14: 33.6702 | AH14: 34.3298 | AI14: 31.6896 | AJ14: 32.3104 | AK14: 28.7187 | AL14: 29.2813 | AM14: 21.29145 | AN14: 21.70855 | AO14: 14.35935 | AP14: 14.64065 | AQ14: 15.8448 | AR14: 16.1552 | AS14: 27 | AT14: 2 | AU14: 824 | AV14: 89 | AW14: 65 | AX14: 306 | AY14: 34
B15: 01 | C15: 8 | D15: 5681 | E15: PUESTO SALUD AYNACA | F15: 1019 | H15: 504.55785 | I15: 514.44215 | K15: 50.5053 | L15: 51.4947 | M15: 64.86465 | N15: 66.13535 | O15: 56.94225 | P15: 58.05775 | Q15: 39.612 | R15: 40.388 | S15: 39.612 | T15: 40.388 | U15: 31.19445 | V15: 31.80555 | W15: 31.6896 | X15: 32.3104 | Y15: 29.21385 | Z15: 29.78615 | AA15: 24.26235 | AB15: 24.73765 | AC15: 28.22355 | AD15: 28.77645 | AE15: 24.26235 | AF15: 24.73765 | AG15: 19.806 | AH15: 20.194 | AI15: 18.32055 | AJ15: 18.67945 | AK15: 16.33995 | AL15: 16.66005 | AM15: 12.37875 | AN15: 12.62125 | AO15: 7.9224 | AP15: 8.0776 | AQ15: 9.40785 | AR15: 9.59215 | AS15: 16 | AT15: 1 | AU15: 475 | AV15: 52 | AW15: 38 | AX15: 177 | AY15: 19
A16: 150803 | C16: 9 | D16: 150803 | E16: DISTRITO CARQUIN | F16: 6670 | H16: 3302.6505 | I16: 3367.3495 | K16: 293.1288 | L16: 298.8712 | M16: 272.3325 | N16: 277.6675 | O16: 278.2743 | P16: 283.7257 | Q16: 286.69185 | R16: 292.30815 | S16: 313.42995 | T16: 319.57005 | U16: 294.61425 | V16: 300.38575 | W16: 292.1385 | X16: 297.8615 | Y16: 237.17685 | Z16: 241.82315 | AA16: 228.7593 | AB16: 233.2407 | AC16: 176.2734 | AD16: 179.7266 | AE16: 162.4092 | AF16: 165.5908 | AG16: 129.7293 | AH16: 132.2707 | AI16: 101.0106 | AJ16: 102.9894 | AK16: 92.59305 | AL16: 94.40695 | AM16: 64.86465 | AN16: 66.13535 | AO16: 38.12655 | AP16: 38.87345 | AQ16: 41.09745 | AR16: 41.90255 | AS16: 129 | AT16: 10 | AU16: 2896 | AV16: 254 | AW16: 279 | AX16: 1232 | AY16: 159
B17: 02 | C17: 10 | D17: 5664 | E17: CENTRO SALUD CARQUIN | F17: 6670 | H17: 3302.6505 | I17: 3367.3495 | K17: 293.1288 | L17: 298.8712 | M17: 272.3325 | N17: 277.6675 | O17: 278.2743 | P17: 283.7257 | Q17: 286.69185 | R17: 292.30815 | S17: 313.42995 | T17: 319.57005 | U17: 294.61425 | V17: 300.38575 | W17: 292.1385 | X17: 297.8615 | Y17: 237.17685 | Z17: 241.82315 | AA17: 228.7593 | AB17: 233.2407 | AC17: 176.2734 | AD17: 179.7266 | AE17: 162.4092 | AF17: 165.5908 | AG17: 129.7293 | AH17: 132.2707 | AI17: 101.0106 | AJ17: 102.9894 | AK17: 92.59305 | AL17: 94.40695 | AM17: 64.86465 | AN17: 66.13535 | AO17: 38.12655 | AP17: 38.87345 | AQ17: 41.09745 | AR17: 41.90255 | AS17: 129 | AT17: 10 | AU17: 2896 | AV17: 254 | AW17: 279 | AX17: 1232 | AY17: 159
A18: 150804 | C18: 11 | D18: 150804 | E18: DISTRUTO CHECRAS | F18: 1716 | H18: 849.6774 | I18: 866.3226 | K18: 63.87435 | L18: 65.12565 | M18: 67.3404 | N18: 68.6596 | O18: 81.2046 | P18: 82.7954 | Q18: 52.98105 | R18: 54.01895 | S18: 33.6702 | T18: 34.3298 | U18: 43.07805 | V18: 43.92195 | W18: 40.10715 | X18: 40.89285 | Y18: 57.4374 | Z18: 58.5626 | AA18: 52.98105 | AB18: 54.01895 | AC18: 50.5053 | AD18: 51.4947 | AE18: 63.87435 | AF18: 65.12565 | AG18: 47.03925 | AH18: 47.96075 | AI18: 48.5247 | AJ18: 49.4753 | AK18: 39.612 | AL18: 40.388 | AM18: 53.4762 | AN18: 54.5238 | AO18: 28.7187 | AP18: 29.2813 | AQ18: 25.25265 | AR18: 25.74735 | AS18: 31 | AT18: 2 | AU18: 852 | AV18: 75 | AW18: 42 | AX18: 281 | AY18: 38
B19: 05 | C19: 12 | D19: 5663 | E19: PUESTO SALUD PUÑUN | F19: 1716 | H19: 849.6774 | I19: 866.3226 | K19: 63.87435 | L19: 65.12565 | M19: 67.3404 | N19: 68.6596 | O19: 81.2046 | P19: 82.7954 | Q19: 52.98105 | R19: 54.01895 | S19: 33.6702 | T19: 34.3298 | U19: 43.07805 | V19: 43.92195 | W19: 40.10715 | X19: 40.89285 | Y19: 57.4374 | Z19: 58.5626 | AA19: 52.98105 | AB19: 54.01895 | AC19: 50.5053 | AD19: 51.4947 | AE19: 63.87435 | AF19: 65.12565 | AG19: 47.03925 | AH19: 47.96075 | AI19: 48.5247 | AJ19: 49.4753 | AK19: 39.612 | AL19: 40.388 | AM19: 53.4762 | AN19: 54.5238 | AO19: 28.7187 | AP19: 29.2813 | AQ19: 25.25265 | AR19: 25.74735 | AS19: 31 | AT19: 2 | AU19: 852 | AV19: 75 | AW19: 42 | AX19: 281 | AY19: 38
A20: 150805 | C20: 13 | D20: 150805 | E20: DISTRITO HUALMAY | F20: 28380 | H20: 14052.357 | I20: 14327.643 | K20: 1166.07825 | L20: 1188.92175 | M20: 1188.36 | N20: 1211.64 | O20: 1375.03155 | P20: 1401.96845 | Q20: 1317.099 | R20: 1342.901 | S20: 1229.9526 | T20: 1254.0474 | U20: 1071.5046 | V20: 1092.4954 | W20: 1040.31015 | X20: 1060.68985 | Y20: 1003.66905 | Z20: 1023.33095 | AA20: 906.61965 | AB20: 924.38035 | AC20: 762.531 | AD20: 777.469 | AE20: 683.307 | AF20: 696.693 | AG20: 610.51995 | AH20: 622.48005 | AI20: 487.72275 | AJ20: 497.27725 | AK20: 412.9551 | AL20: 421.0449 | AM20: 309.9639 | AN20: 316.0361 | AO20: 237.17685 | AP20: 241.82315 | AQ20: 249.5556 | AR20: 254.4444 | AS20: 517 | AT20: 39 | AU20: 14594 | AV20: 1377 | AW20: 1350 | AX20: 6268 | AY20: 641
B21: 02 | C21: 14 | D21: 5665 | E21: CENTRO SALUD HUALMAY | F21: 14190 | H21: 7026.1785 | I21: 7163.8215 | K21: 583.78185 | L21: 595.21815 | M21: 593.1897 | N21: 604.8103 | O21: 687.2682 | P21: 700.7318 | Q21: 659.04465 | R21: 671.95535 | S21: 614.9763 | T21: 627.0237 | U21: 535.7523 | V21: 546.2477 | W21: 520.40265 | X21: 530.59735 | Y21: 502.0821 | Z21: 511.9179 | AA21: 453.06225 | AB21: 461.93775 | AC21: 381.2655 | AD21: 388.7345 | AE21: 341.6535 | AF21: 348.3465 | AG21: 305.0124 | AH21: 310.9876 | AI21: 243.6138 | AJ21: 248.3862 | AK21: 206.47755 | AL21: 210.52245 | AM21: 154.98195 | AN21: 158.01805 | AO21: 118.836 | AP21: 121.164 | AQ21: 124.7778 | AR21: 127.2222 | AS21: 258 | AT21: 19 | AU21: 7297 | AV21: 688 | AW21: 674 | AX21: 3134 | AY21: 321
B22: 02 | C22: 15 | D22: 5666 | E22: PUESTO SALUD DGO.MANDAMIENTO | F22: 9933 | H22: 4918.32495 | I22: 5014.67505 | K22: 408.0036 | L22: 415.9964 | M22: 416.42115 | N22: 424.57885 | O22: 481.2858 | P22: 490.7142 | Q22: 460.4895 | R22: 469.5105 | S22: 430.28535 | T22: 438.71465 | U22: 374.82855 | V22: 382.17145 | W22: 363.93525 | X22: 371.06475 | Y22: 351.06135 | Z22: 357.93865 | AA22: 317.39115 | AB22: 323.60885 | AC22: 266.88585 | AD22: 272.11415 | AE22: 239.15745 | AF22: 243.84255 | AG22: 213.9048 | AH22: 218.0952 | AI22: 170.82675 | AJ22: 174.17325 | AK22: 144.5838 | AL22: 147.4162 | AM22: 108.43785 | AN22: 110.56215 | AO22: 83.68035 | AP22: 85.31965 | AQ22: 87.1464 | AR22: 88.8536 | AS22: 181 | AT22: 14 | AU22: 5108 | AV22: 482 | AW22: 473 | AX22: 2194 | AY22: 224
B23: 02 | C23: 16 | D23: 5667 | E23: PUESTO SALUD CAMPO ALEGRE | F23: 4257 | H23: 2107.85355 | I23: 2149.14645 | K23: 174.2928 | L23: 177.7072 | M23: 178.74915 | N23: 182.25085 | O23: 206.47755 | P23: 210.52245 | Q23: 197.56485 | R23: 201.43515 | S23: 184.69095 | T23: 188.30905 | U23: 160.92375 | V23: 164.07625 | W23: 155.97225 | X23: 159.02775 | Y23: 150.5256 | Z23: 153.4744 | AA23: 136.16625 | AB23: 138.83375 | AC23: 114.37965 | AD23: 116.62035 | AE23: 102.49605 | AF23: 104.50395 | AG23: 91.60275 | AH23: 93.39725 | AI23: 73.2822 | AJ23: 74.7178 | AK23: 61.89375 | AL23: 63.10625 | AM23: 46.5441 | AN23: 47.4559 | AO23: 34.6605 | AP23: 35.3395 | AQ23: 37.6314 | AR23: 38.3686 | AS23: 78 | AT23: 6 | AU23: 2189 | AV23: 207 | AW23: 203 | AX23: 940 | AY23: 96
A24: 150806 | C24: 17 | D24: 150806 | E24: DISTRITO HUAURA | F24: 34561 | H24: 17112.87915 | I24: 17448.12085 | K24: 1475.547 | L24: 1504.453 | M24: 1532.9844 | N24: 1563.0156 | O24: 1814.2296 | P24: 1849.7704 | Q24: 1900.88085 | R24: 1938.11915 | S24: 1582.99455 | T24: 1614.00545 | U24: 1348.29345 | V24: 1374.70655 | W24: 1282.93365 | X24: 1308.06635 | Y24: 1164.09765 | Z24: 1186.90235 | AA24: 1028.42655 | AB24: 1048.57345 | AC24: 935.33835 | AD24: 953.66165 | AE24: 758.5698 | AF24: 773.4302 | AG24: 607.0539 | AH24: 618.9461 | AI24: 486.2373 | AJ24: 495.7627 | AK24: 401.0715 | AL24: 408.9285 | AM24: 361.95465 | AN24: 369.04535 | AO24: 221.8272 | AP24: 226.1728 | AQ24: 210.43875 | AR24: 214.56125 | AS24: 645 | AT24: 49 | AU24: 17142 | AV24: 1746 | AW24: 1844 | AX24: 7543 | AY24: 799
B25: 01 | C25: 18 | D25: 5682 | E25: CENTRO SALUD HUAURA | F25: 15829 | H25: 7837.72935 | I25: 7991.27065 | K25: 675.87975 | L25: 689.12025 | M25: 701.62755 | N25: 715.37245 | O25: 830.8617 | P25: 847.1383 | Q25: 870.96885 | R25: 888.03115 | S25: 724.8996 | T25: 739.1004 | U25: 617.45205 | V25: 629.54795 | W25: 587.74305 | X25: 599.25695 | Y25: 532.7814 | Z25: 543.2186 | AA25: 470.88765 | AB25: 480.11235 | AC25: 428.30475 | AD25: 436.69525 | AE25: 347.5953 | AF25: 354.4047 | AG25: 278.2743 | AH25: 283.7257 | AI25: 222.8175 | AJ25: 227.1825 | AK25: 183.70065 | AL25: 187.29935 | AM25: 165.87525 | AN25: 169.12475 | AO25: 101.50575 | AP25: 103.49425 | AQ25: 96.55425 | AR25: 98.44575 | AS25: 295 | AT25: 22 | AU25: 7851 | AV25: 800 | AW25: 845 | AX25: 3455 | AY25: 366
B26: 01 | C26: 19 | D26: 5686 | E26: CENTRO MAT. INF. EL SOCORRO | F26: 12476 | H26: 6177.4914 | I26: 6298.5086 | K26: 532.7814 | L26: 543.2186 | M26: 553.08255 | N26: 563.91745 | O26: 655.08345 | P26: 667.91655 | Q26: 685.78275 | R26: 699.21725 | S26: 571.4031 | T26: 582.5969 | U26: 487.2276 | V26: 496.7724 | W26: 462.96525 | X26: 472.03475 | Y26: 420.38235 | Z26: 428.61765 | AA26: 371.3625 | AB26: 378.6375 | AC26: 337.6923 | AD26: 344.3077 | AE26: 273.81795 | AF26: 279.18205 | AG26: 219.35145 | AH26: 223.64855 | AI26: 175.2831 | AJ26: 178.7169 | AK26: 144.5838 | AL26: 147.4162 | AM26: 130.7196 | AN26: 133.2804 | AO26: 80.2143 | AP26: 81.7857 | AQ26: 75.75795 | AR26: 77.24205 | AS26: 233 | AT26: 18 | AU26: 6188 | AV26: 630 | AW26: 665 | AX26: 2723 | AY26: 288
B27: 01 | C27: 20 | D27: 5683 | E27: PUESTO SALUD HUMAYA | F27: 3698 | H27: 1831.0647 | I27: 1866.9353 | K27: 157.4577 | L27: 160.5423 | M27: 164.3898 | N27: 167.6102 | O27: 194.59395 | P27: 198.40605 | Q27: 203.0115 | R27: 206.9885 | S27: 169.3413 | T27: 172.6587 | U27: 144.08865 | V27: 146.91135 | W27: 137.6517 | X27: 140.3483 | Y27: 124.7778 | Z27: 127.2222 | AA27: 109.9233 | AB27: 112.0767 | AC27: 100.51545 | AD27: 102.48455 | AE27: 81.2046 | AF27: 82.7954 | AG27: 64.3695 | AH27: 65.6305 | AI27: 51.99075 | AJ27: 53.00925 | AK27: 43.07805 | AL27: 43.92195 | AM27: 38.6217 | AN27: 39.3783 | AO27: 23.7672 | AP27: 24.2328 | AQ27: 22.28175 | AR27: 22.71825 | AS27: 69 | AT27: 5 | AU27: 1834 | AV27: 187 | AW27: 197 | AX27: 807 | AY27: 85
B28: 01 | C28: 21 | D28: 5684 | E28: PUESTO SALUD VILCAHUAURA | F28: 2074 | H28: 1026.9411 | I28: 1047.0589 | K28: 88.63185 | L28: 90.36815 | M28: 92.0979 | N28: 93.9021 | O28: 107.9427 | P28: 110.0573 | Q28: 114.37965 | R28: 116.62035 | S28: 95.0688 | T28: 96.9312 | U28: 80.70945 | V28: 82.29055 | W28: 76.74825 | X28: 78.25175 | Y28: 69.81615 | Z28: 71.18385 | AA28: 61.89375 | AB28: 63.10625 | AC28: 55.95195 | AD28: 57.04805 | AE28: 45.5538 | AF28: 46.4462 | AG28: 36.6411 | AH28: 37.3589 | AI28: 29.21385 | AJ28: 29.78615 | AK28: 24.26235 | AL28: 24.73765 | AM28: 21.7866 | AN28: 22.2134 | AO28: 13.36905 | AP28: 13.63095 | AQ28: 12.8739 | AR28: 13.1261 | AS28: 39 | AT28: 3 | AU28: 1029 | AV28: 105 | AW28: 111 | AX28: 452 | AY28: 49
B29: 01 | C29: 22 | D29: 5685 | E29: PUESTO SALUD PEÑICO | F29: 484 | H29: 239.6526 | I29: 244.3474 | K29: 20.7963 | L29: 21.2037 | M29: 21.7866 | N29: 22.2134 | O29: 25.7478 | P29: 26.2522 | Q29: 26.7381 | R29: 27.2619 | S29: 22.28175 | T29: 22.71825 | U29: 18.8157 | V29: 19.1843 | W29: 17.8254 | X29: 18.1746 | Y29: 16.33995 | Z29: 16.66005 | AA29: 14.35935 | AB29: 14.64065 | AC29: 12.8739 | AD29: 13.1261 | AE29: 10.39815 | AF29: 10.60185 | AG29: 8.41755 | AH29: 8.58245 | AI29: 6.9321 | AJ29: 7.0679 | AK29: 5.44665 | AL29: 5.55335 | AM29: 4.9515 | AN29: 5.0485 | AO29: 2.9709 | AP29: 3.0291 | AQ29: 2.9709 | AR29: 3.0291 | AS29: 9 | AT29: 1 | AU29: 240 | AV29: 24 | AW29: 26 | AX29: 106 | AY29: 11
A30: 150807 | C30: 23 | D30: 150807 | E30: DISTRITO LEONCIO PRADO | F30: 2007 | H30: 993.76605 | I30: 1013.23395 | K30: 102.49605 | L30: 104.50395 | M30: 113.8845 | N30: 116.1155 | O30: 81.69975 | P30: 83.30025 | Q30: 77.73855 | R30: 79.26145 | S30: 83.68035 | T30: 85.31965 | U30: 74.2725 | V30: 75.7275 | W30: 62.88405 | X30: 64.11595 | Y30: 61.3986 | Z30: 62.6014 | AA30: 52.4859 | AB30: 53.5141 | AC30: 58.92285 | AD30: 60.07715 | AE30: 54.4665 | AF30: 55.5335 | AG30: 35.15565 | AH30: 35.84435 | AI30: 35.15565 | AJ30: 35.84435 | AK30: 29.21385 | AL30: 29.78615 | AM30: 28.22355 | AN30: 28.77645 | AO30: 19.806 | AP30: 20.194 | AQ30: 22.28175 | AR30: 22.71825 | AS30: 31 | AT30: 2 | AU30: 915 | AV30: 84 | AW30: 66 | AX30: 356 | AY30: 38
B31: 03 | C31: 24 | D31: 5778 | E31: PUESTO SALUD AUQUIMARCA | F31: 100 | H31: 49.515 | I31: 50.485 | K31: 4.9515 | L31: 5.0485 | M31: 4.9515 | N31: 5.0485 | O31: 4.9515 | P31: 5.0485 | Q31: 4.9515 | R31: 5.0485 | S31: 3.9612 | T31: 4.0388 | U31: 3.9612 | V31: 4.0388 | W31: 2.9709 | X31: 3.0291 | Y31: 2.9709 | Z31: 3.0291 | AA31: 2.47575 | AB31: 2.52425 | AC31: 2.9709 | AD31: 3.0291 | AE31: 2.9709 | AF31: 3.0291 | AG31: 1.48545 | AH31: 1.51455 | AI31: 1.48545 | AJ31: 1.51455 | AK31: 1.48545 | AL31: 1.51455 | AM31: 0.9903 | AN31: 1.0097 | AO31: 0.9903 | AP31: 1.0097 | AQ31: 0.9903 | AR31: 1.0097 | AS31: 2 | AT31: 0 | AU31: 46 | AV31: 4 | AW31: 3 | AX31: 18 | AY31: 2
B32: 03 | C32: 25 | D32: 5779 | E32: PUESTO SALUD PARAN | F32: 1004 | H32: 497.1306 | I32: 506.8694 | K32: 51.4956 | L32: 52.5044 | M32: 57.4374 | N32: 58.5626 | O32: 40.10715 | P32: 40.89285 | Q32: 38.12655 | R32: 38.87345 | S32: 42.08775 | T32: 42.91225 | U32: 36.6411 | V32: 37.3589 | W32: 31.6896 | X32: 32.3104 | Y32: 30.6993 | Z32: 31.3007 | AA32: 26.24295 | AB32: 26.75705 | AC32: 29.709 | AD32: 30.291 | AE32: 27.23325 | AF32: 27.76675 | AG32: 17.8254 | AH32: 18.1746 | AI32: 17.8254 | AJ32: 18.1746 | AK32: 14.35935 | AL32: 14.64065 | AM32: 14.35935 | AN32: 14.64065 | AO32: 9.903 | AP32: 10.097 | AQ32: 11.38845 | AR32: 11.61155 | AS32: 15 | AT32: 2 | AU32: 458 | AV32: 43 | AW32: 33 | AX32: 178 | AY32: 19
B33: 03 | C33: 26 | D33: 6725 | E33: PUESTO SALUD SANTA CRUZ | F33: 442 | H33: 218.8563 | I33: 223.1437 | K33: 22.28175 | L33: 22.71825 | M33: 25.25265 | N33: 25.74735 | O33: 17.8254 | P33: 18.1746 | Q33: 17.33025 | R33: 17.66975 | S33: 18.32055 | T33: 18.67945 | U33: 16.33995 | V33: 16.66005 | W33: 13.8642 | X33: 14.1358 | Y33: 13.36905 | Z33: 13.63095 | AA33: 11.38845 | AB33: 11.61155 | AC33: 12.8739 | AD33: 13.1261 | AE33: 11.8836 | AF33: 12.1164 | AG33: 7.9224 | AH33: 8.0776 | AI33: 7.9224 | AJ33: 8.0776 | AK33: 6.43695 | AL33: 6.56305 | AM33: 6.43695 | AN33: 6.56305 | AO33: 4.45635 | AP33: 4.54365 | AQ33: 4.9515 | AR33: 5.0485 | AS33: 7 | AT33: 0 | AU33: 201 | AV33: 18 | AW33: 15 | AX33: 78 | AY33: 8
B34: 03 | C34: 27 | D34: 7757 | E34: PUESTO SALUD HUANANGUI | F34: 461 | H34: 228.26415 | I34: 232.73585 | K34: 23.7672 | L34: 24.2328 | M34: 26.24295 | N34: 26.75705 | O34: 18.8157 | P34: 19.1843 | Q34: 17.33025 | R34: 17.66975 | S34: 19.31085 | T34: 19.68915 | U34: 17.33025 | V34: 17.66975 | W34: 14.35935 | X34: 14.64065 | Y34: 14.35935 | Z34: 14.64065 | AA34: 12.37875 | AB34: 12.62125 | AC34: 13.36905 | AD34: 13.63095 | AE34: 12.37875 | AF34: 12.62125 | AG34: 7.9224 | AH34: 8.0776 | AI34: 7.9224 | AJ34: 8.0776 | AK34: 6.9321 | AL34: 7.0679 | AM34: 6.43695 | AN34: 6.56305 | AO34: 4.45635 | AP34: 4.54365 | AQ34: 4.9515 | AR34: 5.0485 | AS34: 7 | AT34: 0 | AU34: 210 | AV34: 19 | AW34: 15 | AX34: 82 | AY34: 9
A35: 150808 | C35: 28 | D35: 150808 | E35: DISTRITO PACCHO | F35: 2187 | H35: 1082.89305 | I35: 1104.10695 | K35: 79.71915 | L35: 81.28085 | M35: 92.59305 | N35: 94.40695 | O35: 95.56395 | P35: 97.43605 | Q35: 62.3889 | R35: 63.6111 | S35: 63.3792 | T35: 64.6208 | U35: 58.92285 | V35: 60.07715 | W35: 67.3404 | X35: 68.6596 | Y35: 68.3307 | Z35: 69.6693 | AA35: 69.81615 | AB35: 71.18385 | AC35: 61.3986 | AD35: 62.6014 | AE35: 57.4374 | AF35: 58.5626 | AG35: 55.95195 | AH35: 57.04805 | AI35: 67.83555 | AJ35: 69.16445 | AK35: 61.89375 | AL35: 63.10625 | AM35: 52.98105 | AN35: 54.01895 | AO35: 35.6508 | AP35: 36.3492 | AQ35: 31.6896 | AR35: 32.3104 | AS35: 32 | AT35: 2 | AU35: 1053 | AV35: 99 | AW35: 46 | AX35: 363 | AY35: 40
B36: 05 | C36: 29 | D36: 5650 | E36: CENTRO SALUD PACCHO | F36: 831 | H36: 411.46965 | I36: 419.53035 | K36: 30.6993 | L36: 31.3007 | M36: 34.6605 | N36: 35.3395 | O36: 36.6411 | P36: 37.3589 | Q36: 23.7672 | R36: 24.2328 | S36: 24.26235 | T36: 24.73765 | U36: 22.28175 | V36: 22.71825 | W36: 25.25265 | X36: 25.74735 | Y36: 26.24295 | Z36: 26.75705 | AA36: 26.24295 | AB36: 26.75705 | AC36: 23.27205 | AD36: 23.72795 | AE36: 21.7866 | AF36: 22.2134 | AG36: 21.29145 | AH36: 21.70855 | AI36: 25.7478 | AJ36: 26.2522 | AK36: 23.27205 | AL36: 23.72795 | AM36: 20.30115 | AN36: 20.69885 | AO36: 13.36905 | AP36: 13.63095 | AQ36: 12.37875 | AR36: 12.62125 | AS36: 12 | AT36: 1 | AU36: 400 | AV36: 38 | AW36: 17 | AX36: 138 | AY36: 15
B37: 05 | C37: 30 | D37: 5651 | E37: PUESTO SALUD LACSANGA | F37: 459 | H37: 227.27385 | I37: 231.72615 | K37: 17.33025 | L37: 17.66975 | M37: 19.31085 | N37: 19.68915 | O37: 19.806 | P37: 20.194 | Q37: 12.8739 | R37: 13.1261 | S37: 13.36905 | T37: 13.63095 | U37: 12.37875 | V37: 12.62125 | W37: 14.35935 | X37: 14.64065 | Y37: 14.35935 | Z37: 14.64065 | AA37: 14.8545 | AB37: 15.1455 | AC37: 12.8739 | AD37: 13.1261 | AE37: 11.8836 | AF37: 12.1164 | AG37: 11.8836 | AH37: 12.1164 | AI37: 14.35935 | AJ37: 14.64065 | AK37: 12.8739 | AL37: 13.1261 | AM37: 10.8933 | AN37: 11.1067 | AO37: 7.42725 | AP37: 7.57275 | AQ37: 6.43695 | AR37: 6.56305 | AS37: 7 | AT37: 0 | AU37: 221 | AV37: 21 | AW37: 10 | AX37: 76 | AY37: 8
B38: 05 | C38: 31 | D38: 5653 | E38: PUESTO SALUD AYARANGA | F38: 416 | H38: 205.9824 | I38: 210.0176 | K38: 14.8545 | L38: 15.1455 | M38: 17.8254 | N38: 18.1746 | O38: 18.32055 | P38: 18.67945 | Q38: 11.8836 | R38: 12.1164 | S38: 11.8836 | T38: 12.1164 | U38: 11.38845 | V38: 11.61155 | W38: 12.8739 | X38: 13.1261 | Y38: 12.8739 | Z38: 13.1261 | AA38: 13.36905 | AB38: 13.63095 | AC38: 11.8836 | AD38: 12.1164 | AE38: 10.8933 | AF38: 11.1067 | AG38: 10.39815 | AH38: 10.60185 | AI38: 12.8739 | AJ38: 13.1261 | AK38: 11.8836 | AL38: 12.1164 | AM38: 9.903 | AN38: 10.097 | AO38: 6.9321 | AP38: 7.0679 | AQ38: 5.9418 | AR38: 6.0582 | AS38: 6 | AT38: 0 | AU38: 200 | AV38: 19 | AW38: 9 | AX38: 69 | AY38: 8
B39: 05 | C39: 32 | D39: 5652 | E39: PUESTO SALD MUZGA | F39: 481 | H39: 238.16715 | I39: 242.83285 | K39: 16.8351 | L39: 17.1649 | M39: 20.7963 | N39: 21.2037 | O39: 20.7963 | P39: 21.2037 | Q39: 13.8642 | R39: 14.1358 | S39: 13.8642 | T39: 14.1358 | U39: 12.8739 | V39: 13.1261 | W39: 14.8545 | X39: 15.1455 | Y39: 14.8545 | Z39: 15.1455 | AA39: 15.34965 | AB39: 15.65035 | AC39: 13.36905 | AD39: 13.63095 | AE39: 12.8739 | AF39: 13.1261 | AG39: 12.37875 | AH39: 12.62125 | AI39: 14.8545 | AJ39: 15.1455 | AK39: 13.8642 | AL39: 14.1358 | AM39: 11.8836 | AN39: 12.1164 | AO39: 7.9224 | AP39: 8.0776 | AQ39: 6.9321 | AR39: 7.0679 | AS39: 7 | AT39: 1 | AU39: 232 | AV39: 21 | AW39: 10 | AX39: 80 | AY39: 9
A40: 150809 | C40: 33 | D40: 150809 | E40: DISTRITO SANTA LEONOR | F40: 1486 | H40: 735.7929 | I40: 750.2071 | K40: 54.96165 | L40: 56.03835 | M40: 71.3016 | N40: 72.6984 | O40: 88.63185 | P40: 90.36815 | Q40: 55.95195 | R40: 57.04805 | S40: 45.05865 | T40: 45.94135 | U40: 34.6605 | V40: 35.3395 | W40: 37.13625 | X40: 37.86375 | Y40: 45.05865 | Z40: 45.94135 | AA40: 43.5732 | AB40: 44.4268 | AC40: 45.5538 | AD40: 46.4462 | AE40: 49.01985 | AF40: 49.98015 | AG40: 33.6702 | AH40: 34.3298 | AI40: 37.6314 | AJ40: 38.3686 | AK40: 27.7284 | AL40: 28.2716 | AM40: 27.23325 | AN40: 27.76675 | AO40: 22.28175 | AP40: 22.71825 | AQ40: 16.33995 | AR40: 16.66005 | AS40: 24 | AT40: 2 | AU40: 698 | AV40: 76 | AW40: 58 | AX40: 245 | AY40: 30
B41: 05 | C41: 34 | D41: 5645 | E41: CENTRO SALUD CHIUCHIN | F41: 981 | H41: 485.74215 | I41: 495.25785 | K41: 36.6411 | L41: 37.3589 | M41: 47.03925 | N41: 47.96075 | O41: 58.4277 | P41: 59.5723 | Q41: 36.6411 | R41: 37.3589 | S41: 30.20415 | T41: 30.79585 | U41: 22.7769 | V41: 23.2231 | W41: 24.26235 | X41: 24.73765 | Y41: 30.20415 | Z41: 30.79585 | AA41: 28.7187 | AB41: 29.2813 | AC41: 29.709 | AD41: 30.291 | AE41: 32.18475 | AF41: 32.81525 | AG41: 22.28175 | AH41: 22.71825 | AI41: 24.7575 | AJ41: 25.2425 | AK41: 18.32055 | AL41: 18.67945 | AM41: 18.32055 | AN41: 18.67945 | AO41: 14.35935 | AP41: 14.64065 | AQ41: 10.8933 | AR41: 11.1067 | AS41: 16 | AT41: 1 | AU41: 461 | AV41: 50 | AW41: 39 | AX41: 161 | AY41: 20
B42: 05 | C42: 35 | D42: 5646 | E42: PUESTO SALUD PARQUIN | F42: 416 | H42: 205.9824 | I42: 210.0176 | K42: 14.8545 | L42: 15.1455 | M42: 19.31085 | N42: 19.68915 | O42: 25.25265 | P42: 25.74735 | Q42: 16.33995 | R42: 16.66005 | S42: 12.37875 | T42: 12.62125 | U42: 9.903 | V42: 10.097 | W42: 10.39815 | X42: 10.60185 | Y42: 12.37875 | Z42: 12.62125 | AA42: 12.37875 | AB42: 12.62125 | AC42: 12.8739 | AD42: 13.1261 | AE42: 13.8642 | AF42: 14.1358 | AG42: 9.40785 | AH42: 9.59215 | AI42: 10.39815 | AJ42: 10.60185 | AK42: 7.9224 | AL42: 8.0776 | AM42: 7.42725 | AN42: 7.57275 | AO42: 6.43695 | AP42: 6.56305 | AQ42: 4.45635 | AR42: 4.54365 | AS42: 7 | AT42: 1 | AU42: 195 | AV42: 21 | AW42: 16 | AX42: 69 | AY42: 8
B43: 05 | C43: 36 | D43: 5647 | E43: PUESTO SALUD JUCUL | F43: 89 | H43: 44.06835 | I43: 44.93165 | K43: 3.46605 | L43: 3.53395 | M43: 4.9515 | N43: 5.0485 | O43: 4.9515 | P43: 5.0485 | Q43: 2.9709 | R43: 3.0291 | S43: 2.47575 | T43: 2.52425 | U43: 1.9806 | V43: 2.0194 | W43: 2.47575 | X43: 2.52425 | Y43: 2.47575 | Z43: 2.52425 | AA43: 2.47575 | AB43: 2.52425 | AC43: 2.9709 | AD43: 3.0291 | AE43: 2.9709 | AF43: 3.0291 | AG43: 1.9806 | AH43: 2.0194 | AI43: 2.47575 | AJ43: 2.52425 | AK43: 1.48545 | AL43: 1.51455 | AM43: 1.48545 | AN43: 1.51455 | AO43: 1.48545 | AP43: 1.51455 | AQ43: 0.9903 | AR43: 1.0097 | AS43: 1 | AT43: 0 | AU43: 42 | AV43: 5 | AW43: 3 | AX43: 15 | AY43: 2
A44: 150810 | C44: 37 | D44: 150810 | E44: DISTRITO SANTA MARIA | F44: 32174 | H44: 15930.9561 | I44: 16243.0439 | K44: 1353.24495 | L44: 1379.75505 | M44: 1410.1872 | N44: 1437.8128 | O44: 1584.48 | P44: 1615.52 | Q44: 1517.63475 | R44: 1547.36525 | S44: 1347.7983 | T44: 1374.2017 | U44: 1184.89395 | V44: 1208.10605 | W44: 1187.86485 | X44: 1211.13515 | Y44: 1153.6995 | Z44: 1176.3005 | AA44: 951.18315 | AB44: 969.81685 | AC44: 853.14345 | AD44: 869.85655 | AE44: 714.0063 | AF44: 727.9937 | AG44: 676.3749 | AH44: 689.6251 | AI44: 578.3352 | AJ44: 589.6648 | AK44: 433.7514 | AL44: 442.2486 | AM44: 386.71215 | AN44: 394.28785 | AO44: 274.80825 | AP44: 280.19175 | AQ44: 322.8378 | AR44: 329.1622 | AS44: 580 | AT44: 44 | AU44: 16001 | AV44: 1549 | AW44: 1461 | AX44: 6846 | AY44: 719
B45: 02 | C45: 38 | D45: 5668 | E45: CENTRO SALUD SANTA MARIA | F45: 9331 | H45: 4620.24465 | I45: 4710.75535 | K45: 392.1588 | L45: 399.8412 | M45: 408.9939 | N45: 417.0061 | O45: 459.99435 | P45: 469.00565 | Q45: 439.6932 | R45: 448.3068 | S45: 390.67335 | T45: 398.32665 | U45: 343.6341 | V45: 350.3659 | W45: 344.12925 | X45: 350.87075 | Y45: 334.7214 | Z45: 341.2786 | AA45: 276.2937 | AB45: 281.7063 | AC45: 247.575 | AD45: 252.425 | AE45: 206.9727 | AF45: 211.0273 | AG45: 196.0794 | AH45: 199.9206 | AI45: 167.85585 | AJ45: 171.14415 | AK45: 125.7681 | AL45: 128.2319 | AM45: 111.9039 | AN45: 114.0961 | AO45: 80.2143 | AP45: 81.7857 | AQ45: 93.58335 | AR45: 95.41665 | AS45: 168 | AT45: 12 | AU45: 4641 | AV45: 449 | AW45: 424 | AX45: 1985 | AY45: 208
B46: 02 | C46: 39 | D46: 5669 | E46: PUESTO SALUD CHONTA | F46: 4826 | H46: 2389.5939 | I46: 2436.4061 | K46: 203.0115 | L46: 206.9885 | M46: 211.42905 | N46: 215.57095 | O46: 238.16715 | P46: 242.83285 | Q46: 227.769 | R46: 232.231 | S46: 202.0212 | T46: 205.9788 | U46: 177.75885 | V46: 181.24115 | W46: 178.254 | X46: 181.746 | Y46: 172.80735 | Z46: 176.19265 | AA46: 142.6032 | AB46: 145.3968 | AC46: 127.7487 | AD46: 130.2513 | AE46: 106.9524 | AF46: 109.0476 | AG46: 101.50575 | AH46: 103.49425 | AI46: 86.65125 | AJ46: 88.34875 | AK46: 64.86465 | AL46: 66.13535 | AM46: 58.4277 | AN46: 59.5723 | AO46: 41.09745 | AP46: 41.90255 | AQ46: 48.5247 | AR46: 49.4753 | AS46: 87 | AT46: 7 | AU46: 2400 | AV46: 232 | AW46: 218 | AX46: 1027 | AY46: 108
B47: 02 | C47: 40 | D47: 5671 | E47: PUESTO SALUD ZAPATA | F47: 1930 | H47: 955.6395 | I47: 974.3605 | K47: 80.70945 | L47: 82.29055 | M47: 84.67065 | N47: 86.32935 | O47: 95.0688 | P47: 96.9312 | Q47: 91.1076 | R47: 92.8924 | S47: 80.70945 | T47: 82.29055 | U47: 71.3016 | V47: 72.6984 | W47: 71.3016 | X47: 72.6984 | Y47: 69.321 | Z47: 70.679 | AA47: 56.94225 | AB47: 58.05775 | AC47: 51.00045 | AD47: 51.99955 | AE47: 43.07805 | AF47: 43.92195 | AG47: 40.6023 | AH47: 41.3977 | AI47: 34.6605 | AJ47: 35.3395 | AK47: 26.24295 | AL47: 26.75705 | AM47: 23.27205 | AN47: 23.72795 | AO47: 16.33995 | AP47: 16.66005 | AQ47: 19.31085 | AR47: 19.68915 | AS47: 35 | AT47: 3 | AU47: 960 | AV47: 93 | AW47: 88 | AX47: 411 | AY47: 43
B48: 02 | C48: 41 | D48: 5670 | E48: PUESTO SALUD AMADO VELASQUEZ | F48: 8365 | H48: 4141.92975 | I48: 4223.07025 | K48: 352.05165 | L48: 358.94835 | M48: 366.90615 | N48: 374.09385 | O48: 410.47935 | P48: 418.52065 | Q48: 395.1297 | R48: 402.8703 | S48: 350.5662 | T48: 357.4338 | U48: 307.9833 | V48: 314.0167 | W48: 308.9736 | X48: 315.0264 | Y48: 300.0609 | Z48: 305.9391 | AA48: 247.07985 | AB48: 251.92015 | AC48: 221.8272 | AD48: 226.1728 | AE48: 185.68125 | AF48: 189.31875 | AG48: 175.77825 | AH48: 179.22175 | AI48: 150.5256 | AJ48: 153.4744 | AK48: 112.8942 | AL48: 115.1058 | AM48: 100.51545 | AN48: 102.48455 | AO48: 71.3016 | AP48: 72.6984 | AQ48: 84.1755 | AR48: 85.8245 | AS48: 151 | AT48: 11 | AU48: 4160 | AV48: 403 | AW48: 380 | AX48: 1780 | AY48: 187
B49: 02 | C49: 42 | D49: 5672 | E49: PUESTO SALUD SAN BARTOLOME | F49: 7722 | H49: 3823.5483 | I49: 3898.4517 | K49: 325.31355 | L49: 331.68645 | M49: 338.18745 | N49: 344.81255 | O49: 380.77035 | P49: 388.22965 | Q49: 363.93525 | R49: 371.06475 | S49: 323.8281 | T49: 330.1719 | U49: 284.2161 | V49: 289.7839 | W49: 285.2064 | X49: 290.7936 | Y49: 276.78885 | Z49: 282.21115 | AA49: 228.26415 | AB49: 232.73585 | AC49: 204.9921 | AD49: 209.0079 | AE49: 171.3219 | AF49: 174.6781 | AG49: 162.4092 | AH49: 165.5908 | AI49: 138.642 | AJ49: 141.358 | AK49: 103.9815 | AL49: 106.0185 | AM49: 92.59305 | AN49: 94.40695 | AO49: 65.85495 | AP49: 67.14505 | AQ49: 77.2434 | AR49: 78.7566 | AS49: 139 | AT49: 11 | AU49: 3840 | AV49: 372 | AW49: 351 | AX49: 1643 | AY49: 173
A50: 150811 | C50: 43 | D50: 150811 | E50: DISTRITO SAYAN | F50: 23740 | H50: 11754.861 | I50: 11985.139 | K50: 1096.75725 | L50: 1118.24275 | M50: 1128.942 | N50: 1151.058 | O50: 1191.3309 | P50: 1214.6691 | Q50: 1174.4958 | R50: 1197.5042 | S50: 1101.70875 | T50: 1123.29125 | U50: 978.4164 | V50: 997.5836 | W50: 918.9984 | X50: 937.0016 | Y50: 824.9199 | Z50: 841.0801 | AA50: 667.95735 | AB50: 681.04265 | AC50: 651.12225 | AD50: 663.87775 | AE50: 490.1985 | AF50: 499.8015 | AG50: 417.41145 | AH50: 425.58855 | AI50: 348.09045 | AJ50: 354.90955 | AK50: 265.89555 | AL50: 271.10445 | AM50: 226.28355 | AN50: 230.71645 | AO50: 147.05955 | AP50: 149.94045 | AQ50: 125.27295 | AR50: 127.72705 | AS50: 454 | AT50: 34 | AU50: 11372 | AV50: 1169 | AW50: 1187 | AX50: 4869 | AY50: 562
B51: 03 | C51: 44 | D51: 5780 | E51: CENTRO SALUD SAYAN | F51: 9496 | H51: 4701.9444 | I51: 4794.0556 | K51: 438.7029 | L51: 447.2971 | M51: 452.07195 | N51: 460.92805 | O51: 476.82945 | P51: 486.17055 | Q51: 469.4022 | R51: 478.5978 | S51: 440.6835 | T51: 449.3165 | U51: 391.1685 | V51: 398.8315 | W51: 367.4013 | X51: 374.5987 | Y51: 329.7699 | Z51: 336.2301 | AA51: 267.381 | AB51: 272.619 | AC51: 260.4489 | AD51: 265.5511 | AE51: 196.0794 | AF51: 199.9206 | AG51: 166.86555 | AH51: 170.13445 | AI51: 139.13715 | AJ51: 141.86285 | AK51: 106.45725 | AL51: 108.54275 | AM51: 90.61245 | AN51: 92.38755 | AO51: 58.92285 | AP51: 60.07715 | AQ51: 50.01015 | AR51: 50.98985 | AS51: 182 | AT51: 13 | AU51: 4549 | AV51: 469 | AW51: 475 | AX51: 1949 | AY51: 226
B52: 03 | C52: 45 | D52: 5774 | E52: CENTRO SALUD 9 DE OCTUBRE | F52: 4985 | H52: 2468.32275 | I52: 2516.67725 | K52: 229.7496 | L52: 234.2504 | M52: 237.17685 | N52: 241.82315 | O52: 250.05075 | P52: 254.94925 | Q52: 247.575 | R52: 252.425 | S52: 231.23505 | T52: 235.76495 | U52: 204.9921 | V52: 209.0079 | W52: 193.1085 | X52: 196.8915 | Y52: 173.79765 | Z52: 177.20235 | AA52: 140.12745 | AB52: 142.87255 | AC52: 136.6614 | AD52: 139.3386 | AE52: 102.9912 | AF52: 105.0088 | AG52: 87.64155 | AH52: 89.35845 | AI52: 73.2822 | AJ52: 74.7178 | AK52: 55.4568 | AL52: 56.5432 | AM52: 47.5344 | AN52: 48.4656 | AO52: 30.6993 | AP52: 31.3007 | AQ52: 26.24295 | AR52: 26.75705 | AS52: 95 | AT52: 7 | AU52: 2388 | AV52: 245 | AW52: 249 | AX52: 1022 | AY52: 118
B53: 03 | C53: 46 | D53: 5781 | E53: PUESTO SALUD CHAMBARA | F53: 950 | H53: 470.3925 | I53: 479.6075 | K53: 44.5635 | L53: 45.4365 | M53: 45.05865 | N53: 45.94135 | O53: 47.5344 | P53: 48.4656 | Q53: 47.03925 | R53: 47.96075 | S53: 43.5732 | T53: 44.4268 | U53: 39.11685 | V53: 39.88315 | W53: 36.6411 | X53: 37.3589 | Y53: 33.17505 | Z53: 33.82495 | AA53: 26.7381 | AB53: 27.2619 | AC53: 26.24295 | AD53: 26.75705 | AE53: 19.806 | AF53: 20.194 | AG53: 16.8351 | AH53: 17.1649 | AI53: 13.8642 | AJ53: 14.1358 | AK53: 10.39815 | AL53: 10.60185 | AM53: 8.9127 | AN53: 9.0873 | AO53: 5.9418 | AP53: 6.0582 | AQ53: 4.9515 | AR53: 5.0485 | AS53: 18 | AT53: 1 | AU53: 455 | AV53: 47 | AW53: 47 | AX53: 195 | AY53: 22
B54: 03 | C54: 47 | D54: 5775 | E54: PUESTO SALUD LA MERCED | F54: 1187 | H54: 587.74305 | I54: 599.25695 | K54: 54.4665 | L54: 55.5335 | M54: 56.4471 | N54: 57.5529 | O54: 59.418 | P54: 60.582 | Q54: 58.92285 | R54: 60.07715 | S54: 54.96165 | T54: 56.03835 | U54: 49.01985 | V54: 49.98015 | W54: 46.04895 | X54: 46.95105 | Y54: 41.09745 | Z54: 41.90255 | AA54: 33.17505 | AB54: 33.82495 | AC54: 32.6799 | AD54: 33.3201 | AE54: 24.7575 | AF54: 25.2425 | AG54: 20.7963 | AH54: 21.2037 | AI54: 17.33025 | AJ54: 17.66975 | AK54: 13.36905 | AL54: 13.63095 | AM54: 11.38845 | AN54: 11.61155 | AO54: 7.42725 | AP54: 7.57275 | AQ54: 6.43695 | AR54: 6.56305 | AS54: 23 | AT54: 2 | AU54: 569 | AV54: 58 | AW54: 59 | AX54: 243 | AY54: 28
B55: 03 | C55: 48 | D55: 5776 | E55: PUESTO SALUD LA VILLA | F55: 6172 | H55: 3056.0658 | I55: 3115.9342 | K55: 284.71125 | L55: 290.28875 | M55: 293.62395 | N55: 299.37605 | O55: 308.9736 | P55: 315.0264 | Q55: 306.0027 | R55: 311.9973 | S55: 286.69185 | T55: 292.30815 | U55: 254.5071 | V55: 259.4929 | W55: 239.15745 | X55: 243.84255 | Y55: 214.39995 | Z55: 218.60005 | AA55: 173.79765 | AB55: 177.20235 | AC55: 169.3413 | AD55: 172.6587 | AE55: 126.7584 | AF55: 129.2416 | AG55: 108.43785 | AH55: 110.56215 | AI55: 90.61245 | AJ55: 92.38755 | AK55: 69.321 | AL55: 70.679 | AM55: 58.92285 | AN55: 60.07715 | AO55: 38.12655 | AP55: 38.87345 | AQ55: 32.6799 | AR55: 33.3201 | AS55: 118 | AT55: 9 | AU55: 2957 | AV55: 304 | AW55: 309 | AX55: 1266 | AY55: 146
B56: 03 | C56: 49 | D56: 5777 | E56: PUESTO SALUD EL AHOARCADO | F56: 475 | H56: 235.19625 | I56: 239.80375 | K56: 22.28175 | L56: 22.71825 | M56: 22.28175 | N56: 22.71825 | O56: 24.26235 | P56: 24.73765 | Q56: 22.7769 | R56: 23.2231 | S56: 22.28175 | T56: 22.71825 | U56: 19.806 | V56: 20.194 | W56: 18.32055 | X56: 18.67945 | Y56: 16.33995 | Z56: 16.66005 | AA56: 13.36905 | AB56: 13.63095 | AC56: 12.8739 | AD56: 13.1261 | AE56: 9.903 | AF56: 10.097 | AG56: 8.41755 | AH56: 8.58245 | AI56: 6.9321 | AJ56: 7.0679 | AK56: 5.44665 | AL56: 5.55335 | AM56: 4.45635 | AN56: 4.54365 | AO56: 2.9709 | AP56: 3.0291 | AQ56: 2.47575 | AR56: 2.52425 | AS56: 9 | AT56: 1 | AU56: 227 | AV56: 23 | AW56: 24 | AX56: 97 | AY56: 11
B57: 03 | C57: 50 | D57: 6726 | E57: PUESTO SALUD LA UNION | F57: 475 | H57: 235.19625 | I57: 239.80375 | K57: 22.28175 | L57: 22.71825 | M57: 22.28175 | N57: 22.71825 | O57: 24.26235 | P57: 24.73765 | Q57: 22.7769 | R57: 23.2231 | S57: 22.28175 | T57: 22.71825 | U57: 19.806 | V57: 20.194 | W57: 18.32055 | X57: 18.67945 | Y57: 16.33995 | Z57: 16.66005 | AA57: 13.36905 | AB57: 13.63095 | AC57: 12.8739 | AD57: 13.1261 | AE57: 9.903 | AF57: 10.097 | AG57: 8.41755 | AH57: 8.58245 | AI57: 6.9321 | AJ57: 7.0679 | AK57: 5.44665 | AL57: 5.55335 | AM57: 4.45635 | AN57: 4.54365 | AO57: 2.9709 | AP57: 3.0291 | AQ57: 2.47575 | AR57: 2.52425 | AS57: 9 | AT57: 1 | AU57: 227 | AV57: 23 | AW57: 24 | AX57: 97 | AY57: 11
A58: 150812 | C58: 51 | D58: 150812 | E58: DISTRITO VEGUETA | F58: 21180 | H58: 10487.277 | I58: 10692.723 | K58: 995.74665 | L58: 1015.25335 | M58: 913.0566 | N58: 930.9434 | O58: 1050.21315 | P58: 1070.78685 | Q58: 1074.4755 | R58: 1095.5245 | S58: 976.93095 | T58: 996.06905 | U58: 806.1042 | V58: 821.8958 | W58: 740.7444 | X58: 755.2556 | Y58: 676.3749 | Z58: 689.6251 | AA58: 607.54905 | AB58: 619.45095 | AC58: 581.80125 | AD58: 593.19875 | AE58: 469.89735 | AF58: 479.10265 | AG58: 405.0327 | AH58: 412.9673 | AI58: 338.18745 | AJ58: 344.81255 | AK58: 269.85675 | AL58: 275.14325 | AM58: 234.20595 | AN58: 238.79405 | AO58: 171.81705 | AP58: 175.18295 | AQ58: 175.2831 | AR58: 178.7169 | AS58: 465 | AT58: 35 | AU58: 10340 | AV58: 1006 | AW58: 1071 | AX58: 4386 | AY58: 576
B59: 04 | C59: 52 | D59: 5673 | E59: CENTRO SALUD VEGUETA | F59: 6354 | H59: 3146.1831 | I59: 3207.8169 | K59: 298.57545 | L59: 304.42455 | M59: 273.81795 | N59: 279.18205 | O59: 314.9154 | P59: 321.0846 | Q59: 322.34265 | R59: 328.65735 | S59: 293.1288 | T59: 298.8712 | U59: 241.6332 | V59: 246.3668 | W59: 222.32235 | X59: 226.67765 | Y59: 202.51635 | Z59: 206.48365 | AA59: 182.2152 | AB59: 185.7848 | AC59: 174.78795 | AD59: 178.21205 | AE59: 141.11775 | AF59: 143.88225 | AG59: 121.31175 | AH59: 123.68825 | AI59: 102.0009 | AJ59: 103.9991 | AK59: 81.2046 | AL59: 82.7954 | AM59: 70.3113 | AN59: 71.6887 | AO59: 51.4956 | AP59: 52.5044 | AQ59: 52.4859 | AR59: 53.5141 | AS59: 139 | AT59: 11 | AU59: 3102 | AV59: 302 | AW59: 321 | AX59: 1316 | AY59: 173
B60: 04 | C60: 53 | D60: 5674 | E60: PUESTO SALUD MAZO | F60: 2118 | H60: 1048.7277 | I60: 1069.2723 | K60: 99.03 | L60: 100.97 | M60: 91.60275 | N60: 93.39725 | O60: 104.47665 | P60: 106.52335 | Q60: 107.44755 | R60: 109.55245 | S60: 97.54455 | T60: 99.45545 | U60: 80.70945 | V60: 82.29055 | W60: 74.2725 | X60: 75.7275 | Y60: 67.83555 | Z60: 69.16445 | AA60: 60.90345 | AB60: 62.09655 | AC60: 57.93255 | AD60: 59.06745 | AE60: 47.03925 | AF60: 47.96075 | AG60: 40.6023 | AH60: 41.3977 | AI60: 33.6702 | AJ60: 34.3298 | AK60: 27.23325 | AL60: 27.76675 | AM60: 23.27205 | AN60: 23.72795 | AO60: 17.33025 | AP60: 17.66975 | AQ60: 17.8254 | AR60: 18.1746 | AS60: 47 | AT60: 4 | AU60: 1034 | AV60: 101 | AW60: 107 | AX60: 439 | AY60: 58
B61: 04 | C61: 54 | D61: 5675 | E61: PUESTO SALUD PRIMAVERA | F61: 2330 | H61: 1153.6995 | I61: 1176.3005 | K61: 110.41845 | L61: 112.58155 | M61: 100.0203 | N61: 101.9797 | O61: 115.36995 | P61: 117.63005 | Q61: 118.34085 | R61: 120.65915 | S61: 107.44755 | T61: 109.55245 | U61: 88.63185 | V61: 90.36815 | W61: 81.69975 | X61: 83.30025 | Y61: 74.2725 | Z61: 75.7275 | AA61: 66.84525 | AB61: 68.15475 | AC61: 63.87435 | AD61: 65.12565 | AE61: 51.4956 | AF61: 52.5044 | AG61: 44.5635 | AH61: 45.4365 | AI61: 37.13625 | AJ61: 37.86375 | AK61: 29.709 | AL61: 30.291 | AM61: 25.7478 | AN61: 26.2522 | AO61: 18.8157 | AP61: 19.1843 | AQ61: 19.31085 | AR61: 19.68915 | AS61: 51 | AT61: 4 | AU61: 1137 | AV61: 111 | AW61: 118 | AX61: 482 | AY61: 63
B62: 04 | C62: 55 | D62: 5676 | E62: PUESTO SALUD JOSE C. MARIATEGUI | F62: 5083 | H62: 2516.84745 | I62: 2566.15255 | K62: 238.6623 | L62: 243.3377 | M62: 219.35145 | N62: 223.64855 | O62: 252.03135 | P62: 256.96865 | Q62: 257.478 | R62: 262.522 | S62: 234.7011 | T62: 239.2989 | U62: 193.60365 | V62: 197.39635 | W62: 177.75885 | X62: 181.24115 | Y62: 162.4092 | Z62: 165.5908 | AA62: 145.5741 | AB62: 148.4259 | AC62: 139.6323 | AD62: 142.3677 | AE62: 112.8942 | AF62: 115.1058 | AG62: 97.0494 | AH62: 98.9506 | AI62: 81.2046 | AJ62: 82.7954 | AK62: 64.86465 | AL62: 66.13535 | AM62: 56.4471 | AN62: 57.5529 | AO62: 41.09745 | AP62: 41.90255 | AQ62: 42.08775 | AR62: 42.91225 | AS62: 111 | AT62: 8 | AU62: 2482 | AV62: 241 | AW62: 257 | AX62: 1053 | AY62: 138
B63: 04 | C63: 56 | D63: 5677 | E63: PUESTO SALUD MEDIO MUNDO | F63: 4447 | H63: 2201.93205 | I63: 2245.06795 | K63: 208.9533 | L63: 213.0467 | M63: 191.62305 | N63: 195.37695 | O63: 221.8272 | P63: 226.1728 | Q63: 225.7884 | R63: 230.2116 | S63: 204.9921 | T63: 209.0079 | U63: 169.3413 | V63: 172.6587 | W63: 154.98195 | X63: 158.01805 | Y63: 142.10805 | Z63: 144.89195 | AA63: 127.7487 | AB63: 130.2513 | AC63: 122.30205 | AD63: 124.69795 | AE63: 98.53485 | AF63: 100.46515 | AG63: 85.1658 | AH63: 86.8342 | AI63: 70.80645 | AJ63: 72.19355 | AK63: 55.95195 | AL63: 57.04805 | AM63: 49.01985 | AN63: 49.98015 | AO63: 36.14595 | AP63: 36.85405 | AQ63: 36.6411 | AR63: 37.3589 | AS63: 98 | AT63: 7 | AU63: 2171 | AV63: 211 | AW63: 225 | AX63: 921 | AY63: 121
B64: 04 | C64: 57 | D64: 5678 | E64: PUESTO SALUD TIROLER | F64: 848 | H64: 419.8872 | I64: 428.1128 | K64: 40.10715 | L64: 40.89285 | M64: 36.6411 | N64: 37.3589 | O64: 41.5926 | P64: 42.4074 | Q64: 43.07805 | R64: 43.92195 | S64: 39.11685 | T64: 39.88315 | U64: 32.18475 | V64: 32.81525 | W64: 29.709 | X64: 30.291 | Y64: 27.23325 | Z64: 27.76675 | AA64: 24.26235 | AB64: 24.73765 | AC64: 23.27205 | AD64: 23.72795 | AE64: 18.8157 | AF64: 19.1843 | AG64: 16.33995 | AH64: 16.66005 | AI64: 13.36905 | AJ64: 13.63095 | AK64: 10.8933 | AL64: 11.1067 | AM64: 9.40785 | AN64: 9.59215 | AO64: 6.9321 | AP64: 7.0679 | AQ64: 6.9321 | AR64: 7.0679 | AS64: 19 | AT64: 1 | AU64: 414 | AV64: 40 | AW64: 43 | AX64: 175 | AY64: 23
A65: 150900 | C65: 58 | D65: 150900 | E65: PROVINCIA OYÓN | F65: 22404 | H65: 11093.3406 | I65: 11310.6594 | K65: 1168.554 | L65: 1191.446 | M65: 1166.07825 | N65: 1188.92175 | O65: 1207.67085 | P65: 1231.32915 | Q65: 932.8626 | R65: 951.1374 | S65: 830.36655 | T65: 846.63345 | U65: 853.14345 | V65: 869.85655 | W65: 833.8326 | X65: 850.1674 | Y65: 847.6968 | Z65: 864.3032 | AA65: 621.9084 | AB65: 634.0916 | AC65: 591.2091 | AD65: 602.7909 | AE65: 457.02345 | AF65: 465.97655 | AG65: 382.75095 | AH65: 390.24905 | AI65: 303.52695 | AJ65: 309.47305 | AK65: 298.57545 | AL65: 304.42455 | AM65: 249.5556 | AN65: 254.4444 | AO65: 198.55515 | AP65: 202.44485 | AQ65: 150.03045 | AR65: 152.96955 | AS65: 519 | AT65: 39 | AU65: 10432 | AV65: 1162 | AW65: 910 | AX65: 4007 | AY65: 643
A66: 150901 | C66: 59 | D66: 150901 | E66: DISTRITO OYÓN | F66: 14141 | H66: 7001.91615 | I66: 7139.08385 | K66: 786.2982 | L66: 801.7018 | M66: 782.337 | N66: 797.663 | O66: 802.143 | P66: 817.857 | Q66: 610.0248 | R66: 621.9752 | S66: 547.14075 | T66: 557.85925 | U66: 592.69455 | V66: 604.30545 | W66: 573.87885 | X66: 585.12115 | Y66: 569.91765 | Z66: 581.08235 | AA66: 390.67335 | AB66: 398.32665 | AC66: 356.01285 | AD66: 362.98715 | AE66: 272.82765 | AF66: 278.17235 | AG66: 198.55515 | AH66: 202.44485 | AI66: 134.6808 | AJ66: 137.3192 | AK66: 135.6711 | AL66: 138.3289 | AM66: 101.0106 | AN66: 102.9894 | AO66: 82.69005 | AP66: 84.30995 | AQ66: 65.3598 | AR66: 66.6402 | AS66: 345 | AT66: 26 | AU66: 6482 | AV66: 780 | AW66: 630 | AX66: 2559 | AY66: 428
B67: 05 | C67: 60 | D67: 5659 | E67: CENTRO SALUD OYON | F67: 11370 | H67: 5629.8555 | I67: 5740.1445 | K67: 632.30655 | L67: 644.69345 | M67: 629.33565 | N67: 641.66435 | O67: 644.19015 | P67: 656.80985 | Q67: 491.68395 | R67: 501.31605 | S67: 439.6932 | T67: 448.3068 | U67: 476.3343 | V67: 485.6657 | W67: 461.4798 | X67: 470.5202 | Y67: 458.01375 | Z67: 466.98625 | AA67: 313.9251 | AB67: 320.0749 | AC67: 286.1967 | AD67: 291.8033 | AE67: 219.35145 | AF67: 223.64855 | AG67: 159.93345 | AH67: 163.06655 | AI67: 107.9427 | AJ67: 110.0573 | AK67: 108.933 | AL67: 111.067 | AM67: 81.69975 | AN67: 83.30025 | AO67: 66.3501 | AP67: 67.6499 | AQ67: 52.4859 | AR67: 53.5141 | AS67: 277 | AT67: 21 | AU67: 5211 | AV67: 628 | AW67: 507 | AX67: 2057 | AY67: 344
B68: 05 | C68: 61 | D68: 5660 | E68: PUESTO SALUD MALLAY | F68: 1131 | H68: 560.01465 | I68: 570.98535 | K68: 62.88405 | L68: 64.11595 | M68: 62.88405 | N68: 64.11595 | O68: 64.3695 | P68: 65.6305 | Q68: 48.02955 | R68: 48.97045 | S68: 44.06835 | T68: 44.93165 | U68: 47.5344 | V68: 48.4656 | W68: 45.5538 | X68: 46.4462 | Y68: 45.5538 | Z68: 46.4462 | AA68: 31.19445 | AB68: 31.80555 | AC68: 28.7187 | AD68: 29.2813 | AE68: 21.7866 | AF68: 22.2134 | AG68: 15.8448 | AH68: 16.1552 | AI68: 10.8933 | AJ68: 11.1067 | AK68: 10.8933 | AL68: 11.1067 | AM68: 7.9224 | AN68: 8.0776 | AO68: 6.43695 | AP68: 6.56305 | AQ68: 5.44665 | AR68: 5.55335 | AS68: 28 | AT68: 2 | AU68: 519 | AV68: 62 | AW68: 50 | AX68: 205 | AY68: 34
B69: 05 | C69: 62 | D69: 5661 | E69: PUESTO SALUD NAVA | F69: 85 | H69: 42.08775 | I69: 42.91225 | K69: 4.9515 | L69: 5.0485 | M69: 4.9515 | N69: 5.0485 | O69: 4.9515 | P69: 5.0485 | Q69: 3.46605 | R69: 3.53395 | S69: 3.46605 | T69: 3.53395 | U69: 3.46605 | V69: 3.53395 | W69: 3.46605 | X69: 3.53395 | Y69: 3.46605 | Z69: 3.53395 | AA69: 2.47575 | AB69: 2.52425 | AC69: 1.48545 | AD69: 1.51455 | AE69: 1.48545 | AF69: 1.51455 | AG69: 0.9903 | AH69: 1.0097 | AI69: 0.9903 | AJ69: 1.0097 | AK69: 0.9903 | AL69: 1.0097 | AM69: 0.49515 | AN69: 0.50485 | AO69: 0.49515 | AP69: 0.50485 | AQ69: 0.49515 | AR69: 0.50485 | AS69: 2 | AT69: 0 | AU69: 39 | AV69: 5 | AW69: 4 | AX69: 15 | AY69: 3
B70: 05 | C70: 63 | D70: 5662 | E70: PUESTO SALUD TINTA | F70: 424 | H70: 209.9436 | I70: 214.0564 | K70: 23.27205 | L70: 23.72795 | M70: 22.7769 | N70: 23.2231 | O70: 24.26235 | P70: 24.73765 | Q70: 18.32055 | R70: 18.67945 | S70: 16.33995 | T70: 16.66005 | U70: 17.8254 | V70: 18.1746 | W70: 17.33025 | X70: 17.66975 | Y70: 17.33025 | Z70: 17.66975 | AA70: 11.8836 | AB70: 12.1164 | AC70: 10.8933 | AD70: 11.1067 | AE70: 8.41755 | AF70: 8.58245 | AG70: 5.9418 | AH70: 6.0582 | AI70: 3.9612 | AJ70: 4.0388 | AK70: 3.9612 | AL70: 4.0388 | AM70: 2.9709 | AN70: 3.0291 | AO70: 2.47575 | AP70: 2.52425 | AQ70: 1.9806 | AR70: 2.0194 | AS70: 10 | AT70: 1 | AU70: 194 | AV70: 23 | AW70: 19 | AX70: 77 | AY70: 13
B71: 05 | C71: 64 | D71: 5648 | E71: PUESTO SALUD RAPAZ | F71: 1131 | H71: 560.01465 | I71: 570.98535 | K71: 62.88405 | L71: 64.11595 | M71: 62.3889 | N71: 63.6111 | O71: 64.3695 | P71: 65.6305 | Q71: 48.5247 | R71: 49.4753 | S71: 43.5732 | T71: 44.4268 | U71: 47.5344 | V71: 48.4656 | W71: 46.04895 | X71: 46.95105 | Y71: 45.5538 | Z71: 46.4462 | AA71: 31.19445 | AB71: 31.80555 | AC71: 28.7187 | AD71: 29.2813 | AE71: 21.7866 | AF71: 22.2134 | AG71: 15.8448 | AH71: 16.1552 | AI71: 10.8933 | AJ71: 11.1067 | AK71: 10.8933 | AL71: 11.1067 | AM71: 7.9224 | AN71: 8.0776 | AO71: 6.9321 | AP71: 7.0679 | AQ71: 4.9515 | AR71: 5.0485 | AS71: 28 | AT71: 2 | AU71: 519 | AV71: 62 | AW71: 50 | AX71: 205 | AY71: 34
A72: 150902 | C72: 65 | D72: 150902 | E72: DISTRITO ANDAJES | F72: 1053 | H72: 521.39295 | I72: 531.60705 | K72: 21.29145 | L72: 21.70855 | M72: 30.20415 | N72: 30.79585 | O72: 34.16535 | P72: 34.83465 | Q72: 32.18475 | R72: 32.81525 | S72: 27.23325 | T72: 27.76675 | U72: 33.6702 | V72: 34.3298 | W72: 24.7575 | X72: 25.2425 | Y72: 36.6411 | Z72: 37.3589 | AA72: 28.7187 | AB72: 29.2813 | AC72: 38.12655 | AD72: 38.87345 | AE72: 24.26235 | AF72: 24.73765 | AG72: 31.6896 | AH72: 32.3104 | AI72: 29.21385 | AJ72: 29.78615 | AK72: 44.06835 | AL72: 44.93165 | AM72: 25.25265 | AN72: 25.74735 | AO72: 37.13625 | AP72: 37.86375 | AQ72: 22.7769 | AR72: 23.2231 | AS72: 8 | AT72: 1 | AU72: 491 | AV72: 26 | AW72: 30 | AX72: 172 | AY72: 10
B73: 05 | C73: 66 | D73: 5654 | E73: PUESTO SALUD ANDAJES | F73: 1053 | H73: 521.39295 | I73: 531.60705 | K73: 21.29145 | L73: 21.70855 | M73: 30.20415 | N73: 30.79585 | O73: 34.16535 | P73: 34.83465 | Q73: 32.18475 | R73: 32.81525 | S73: 27.23325 | T73: 27.76675 | U73: 33.6702 | V73: 34.3298 | W73: 24.7575 | X73: 25.2425 | Y73: 36.6411 | Z73: 37.3589 | AA73: 28.7187 | AB73: 29.2813 | AC73: 38.12655 | AD73: 38.87345 | AE73: 24.26235 | AF73: 24.73765 | AG73: 31.6896 | AH73: 32.3104 | AI73: 29.21385 | AJ73: 29.78615 | AK73: 44.06835 | AL73: 44.93165 | AM73: 25.25265 | AN73: 25.74735 | AO73: 37.13625 | AP73: 37.86375 | AQ73: 22.7769 | AR73: 23.2231 | AS73: 8 | AT73: 1 | AU73: 491 | AV73: 26 | AW73: 30 | AX73: 172 | AY73: 10
A74: 150903 | C74: 67 | D74: 150903 | E74: DISTRITO CAUJUL | F74: 1013 | H74: 501.58695 | I74: 511.41305 | K74: 49.01985 | L74: 49.98015 | M74: 54.96165 | N74: 56.03835 | O74: 44.06835 | P74: 44.93165 | Q74: 38.6217 | R74: 39.3783 | S74: 36.6411 | T74: 37.3589 | U74: 31.19445 | V74: 31.80555 | W74: 34.6605 | X74: 35.3395 | Y74: 33.6702 | Z74: 34.3298 | AA74: 26.24295 | AB74: 26.75705 | AC74: 32.6799 | AD74: 33.3201 | AE74: 23.27205 | AF74: 23.72795 | AG74: 18.8157 | AH74: 19.1843 | AI74: 17.8254 | AJ74: 18.1746 | AK74: 24.26235 | AL74: 24.73765 | AM74: 13.36905 | AN74: 13.63095 | AO74: 11.8836 | AP74: 12.1164 | AQ74: 10.39815 | AR74: 10.60185 | AS74: 17 | AT74: 1 | AU74: 481 | AV74: 42 | AW74: 29 | AX74: 188 | AY74: 21
B75: 05 | C75: 68 | D75: 5655 | E75: PUESTO SALUD CAUJUL | F75: 1013 | H75: 501.58695 | I75: 511.41305 | K75: 49.01985 | L75: 49.98015 | M75: 54.96165 | N75: 56.03835 | O75: 44.06835 | P75: 44.93165 | Q75: 38.6217 | R75: 39.3783 | S75: 36.6411 | T75: 37.3589 | U75: 31.19445 | V75: 31.80555 | W75: 34.6605 | X75: 35.3395 | Y75: 33.6702 | Z75: 34.3298 | AA75: 26.24295 | AB75: 26.75705 | AC75: 32.6799 | AD75: 33.3201 | AE75: 23.27205 | AF75: 23.72795 | AG75: 18.8157 | AH75: 19.1843 | AI75: 17.8254 | AJ75: 18.1746 | AK75: 24.26235 | AL75: 24.73765 | AM75: 13.36905 | AN75: 13.63095 | AO75: 11.8836 | AP75: 12.1164 | AQ75: 10.39815 | AR75: 10.60185 | AS75: 17 | AT75: 1 | AU75: 481 | AV75: 42 | AW75: 29 | AX75: 188 | AY75: 21
A76: 150904 | C76: 69 | D76: 150904 | E76: DISTRITO COCHAMARCA | F76: 1593 | H76: 788.77395 | I76: 804.22605 | K76: 82.1949 | L76: 83.8051 | M76: 99.52515 | N76: 101.47485 | O76: 99.03 | P76: 100.97 | Q76: 73.2822 | R76: 74.7178 | S76: 56.4471 | T76: 57.5529 | U76: 38.12655 | V76: 38.87345 | W76: 54.4665 | X76: 55.5335 | Y76: 53.4762 | Z76: 54.5238 | AA76: 46.04895 | AB76: 46.95105 | AC76: 37.6314 | AD76: 38.3686 | AE76: 28.22355 | AF76: 28.77645 | AG76: 30.20415 | AH76: 30.79585 | AI76: 24.26235 | AJ76: 24.73765 | AK76: 17.8254 | AL76: 18.1746 | AM76: 18.8157 | AN76: 19.1843 | AO76: 15.8448 | AP76: 16.1552 | AQ76: 13.36905 | AR76: 13.63095 | AS76: 31 | AT76: 2 | AU76: 781 | AV76: 95 | AW76: 61 | AX76: 270 | AY76: 38
B77: 03 | C77: 70 | D77: 5783 | E77: PUESTO SALUD COCHAMARCA | F77: 637 | H77: 315.41055 | I77: 321.58945 | K77: 32.6799 | L77: 33.3201 | M77: 39.612 | N77: 40.388 | O77: 39.612 | P77: 40.388 | Q77: 29.709 | R77: 30.291 | S77: 22.7769 | T77: 23.2231 | U77: 15.34965 | V77: 15.65035 | W77: 21.29145 | X77: 21.70855 | Y77: 21.29145 | Z77: 21.70855 | AA77: 18.32055 | AB77: 18.67945 | AC77: 15.34965 | AD77: 15.65035 | AE77: 10.8933 | AF77: 11.1067 | AG77: 12.37875 | AH77: 12.62125 | AI77: 9.903 | AJ77: 10.097 | AK77: 6.9321 | AL77: 7.0679 | AM77: 7.42725 | AN77: 7.57275 | AO77: 6.43695 | AP77: 6.56305 | AQ77: 5.44665 | AR77: 5.55335 | AS77: 12 | AT77: 1 | AU77: 313 | AV77: 38 | AW77: 25 | AX77: 107 | AY77: 15
B78: 03 | C78: 71 | D78: 5784 | E78: PUESTO SALUD COLCAPAMPA | F78: 717 | H78: 355.02255 | I78: 361.97745 | K78: 37.13625 | L78: 37.86375 | M78: 45.05865 | N78: 45.94135 | O78: 44.5635 | P78: 45.4365 | Q78: 32.6799 | R78: 33.3201 | S78: 25.25265 | T78: 25.74735 | U78: 16.8351 | V78: 17.1649 | W78: 24.7575 | X78: 25.2425 | Y78: 24.26235 | Z78: 24.73765 | AA78: 20.7963 | AB78: 21.2037 | AC78: 16.8351 | AD78: 17.1649 | AE78: 12.8739 | AF78: 13.1261 | AG78: 13.36905 | AH78: 13.63095 | AI78: 10.8933 | AJ78: 11.1067 | AK78: 8.41755 | AL78: 8.58245 | AM78: 8.41755 | AN78: 8.58245 | AO78: 6.9321 | AP78: 7.0679 | AQ78: 5.9418 | AR78: 6.0582 | AS78: 14 | AT78: 1 | AU78: 351 | AV78: 43 | AW78: 27 | AX78: 122 | AY78: 17
B79: 03 | C79: 72 | D79: 5785 | E79: PUESTO SALUD YARUCAYA | F79: 239 | H79: 118.34085 | I79: 120.65915 | K79: 12.37875 | L79: 12.62125 | M79: 14.8545 | N79: 15.1455 | O79: 14.8545 | P79: 15.1455 | Q79: 10.8933 | R79: 11.1067 | S79: 8.41755 | T79: 8.58245 | U79: 5.9418 | V79: 6.0582 | W79: 8.41755 | X79: 8.58245 | Y79: 7.9224 | Z79: 8.0776 | AA79: 6.9321 | AB79: 7.0679 | AC79: 5.44665 | AD79: 5.55335 | AE79: 4.45635 | AF79: 4.54365 | AG79: 4.45635 | AH79: 4.54365 | AI79: 3.46605 | AJ79: 3.53395 | AK79: 2.47575 | AL79: 2.52425 | AM79: 2.9709 | AN79: 3.0291 | AO79: 2.47575 | AP79: 2.52425 | AQ79: 1.9806 | AR79: 2.0194 | AS79: 5 | AT79: 0 | AU79: 117 | AV79: 14 | AW79: 9 | AX79: 41 | AY79: 6
A80: 150905 | C80: 73 | D80: 150905 | E80: DISTRITO NAVAN | F80: 1170 | H80: 579.3255 | I80: 590.6745 | K80: 67.83555 | L80: 69.16445 | M80: 44.06835 | N80: 44.93165 | O80: 49.515 | P80: 50.485 | Q80: 33.17505 | R80: 33.82495 | S80: 48.5247 | T80: 49.4753 | U80: 42.08775 | V80: 42.91225 | W80: 39.11685 | X80: 39.88315 | Y80: 40.10715 | Z80: 40.89285 | AA80: 37.6314 | AB80: 38.3686 | AC80: 34.16535 | AD80: 34.83465 | AE80: 27.23325 | AF80: 27.76675 | AG80: 19.806 | AH80: 20.194 | AI80: 28.7187 | AJ80: 29.2813 | AK80: 12.8739 | AL80: 13.1261 | AM80: 29.709 | AN80: 30.291 | AO80: 13.8642 | AP80: 14.1358 | AQ80: 10.8933 | AR80: 11.1067 | AS80: 40 | AT80: 3 | AU80: 568 | AV80: 47 | AW80: 28 | AX80: 217 | AY80: 49
B81: 05 | C81: 74 | D81: 5656 | E81: PUESTO SALUD NAVAN | F81: 1170 | H81: 579.3255 | I81: 590.6745 | K81: 67.83555 | L81: 69.16445 | M81: 44.06835 | N81: 44.93165 | O81: 49.515 | P81: 50.485 | Q81: 33.17505 | R81: 33.82495 | S81: 48.5247 | T81: 49.4753 | U81: 42.08775 | V81: 42.91225 | W81: 39.11685 | X81: 39.88315 | Y81: 40.10715 | Z81: 40.89285 | AA81: 37.6314 | AB81: 38.3686 | AC81: 34.16535 | AD81: 34.83465 | AE81: 27.23325 | AF81: 27.76675 | AG81: 19.806 | AH81: 20.194 | AI81: 28.7187 | AJ81: 29.2813 | AK81: 12.8739 | AL81: 13.1261 | AM81: 29.709 | AN81: 30.291 | AO81: 13.8642 | AP81: 14.1358 | AQ81: 10.8933 | AR81: 11.1067 | AS81: 40 | AT81: 3 | AU81: 568 | AV81: 47 | AW81: 28 | AX81: 217 | AY81: 49
A82: 150906 | C82: 75 | D82: 150906 | E82: DISTRITO PACHANGARA | F82: 3434 | H82: 1700.3451 | I82: 1733.6549 | K82: 161.91405 | L82: 165.08595 | M82: 154.98195 | N82: 158.01805 | O82: 178.74915 | P82: 182.25085 | Q82: 145.5741 | R82: 148.4259 | S82: 114.37965 | T82: 116.62035 | U82: 115.36995 | V82: 117.63005 | W82: 106.9524 | X82: 109.0476 | Y82: 113.8845 | Z82: 116.1155 | AA82: 92.59305 | AB82: 94.40695 | AC82: 92.59305 | AD82: 94.40695 | AE82: 81.2046 | AF82: 82.7954 | AG82: 83.68035 | AH82: 85.31965 | AI82: 68.82585 | AJ82: 70.17415 | AK82: 63.87435 | AL82: 65.12565 | AM82: 61.3986 | AN82: 62.6014 | AO82: 37.13625 | AP82: 37.86375 | AQ82: 27.23325 | AR82: 27.76675 | AS82: 78 | AT82: 6 | AU82: 1629 | AV82: 172 | AW82: 132 | AX82: 601 | AY82: 97
B83: 05 | C83: 76 | D83: 5657 | E83: CENTRO SALUD CHURIN | F83: 2713 | H83: 1343.34195 | I83: 1369.65805 | K83: 127.7487 | L83: 130.2513 | M83: 122.7972 | N83: 125.2028 | O83: 141.11775 | P83: 143.88225 | Q83: 114.8748 | R83: 117.1252 | S83: 90.1173 | T83: 91.8827 | U83: 91.1076 | V83: 92.8924 | W83: 84.67065 | X83: 86.32935 | Y83: 90.1173 | Z83: 91.8827 | AA83: 73.2822 | AB83: 74.7178 | AC83: 73.2822 | AD83: 74.7178 | AE83: 64.3695 | AF83: 65.6305 | AG83: 66.3501 | AH83: 67.6499 | AI83: 53.97135 | AJ83: 55.02865 | AK83: 50.5053 | AL83: 51.4947 | AM83: 48.5247 | AN83: 49.4753 | AO83: 29.21385 | AP83: 29.78615 | AQ83: 21.29145 | AR83: 21.70855 | AS83: 62 | AT83: 4 | AU83: 1287 | AV83: 136 | AW83: 104 | AX83: 475 | AY83: 76
B84: 05 | C84: 77 | D84: 5658 | E84: PUESTO SALUD HUANCAHUASI | F84: 309 | H84: 153.00135 | I84: 155.99865 | K84: 14.35935 | L84: 14.64065 | M84: 13.8642 | N84: 14.1358 | O84: 16.33995 | P84: 16.66005 | Q84: 13.36905 | R84: 13.63095 | S84: 10.39815 | T84: 10.60185 | U84: 10.39815 | V84: 10.60185 | W84: 9.40785 | X84: 9.59215 | Y84: 9.903 | Z84: 10.097 | AA84: 8.41755 | AB84: 8.58245 | AC84: 8.41755 | AD84: 8.58245 | AE84: 6.9321 | AF84: 7.0679 | AG84: 7.42725 | AH84: 7.57275 | AI84: 6.43695 | AJ84: 6.56305 | AK84: 5.9418 | AL84: 6.0582 | AM84: 5.44665 | AN84: 5.55335 | AO84: 3.46605 | AP84: 3.53395 | AQ84: 2.47575 | AR84: 2.52425 | AS84: 7 | AT84: 1 | AU84: 147 | AV84: 15 | AW84: 12 | AX84: 54 | AY84: 9
B85: 05 | C85: 78 | D85: 5649 | E85: PUESTO SALUD PACHANGARA | F85: 412 | H85: 204.0018 | I85: 207.9982 | K85: 19.806 | L85: 20.194 | M85: 18.32055 | N85: 18.67945 | O85: 21.29145 | P85: 21.70855 | Q85: 17.33025 | R85: 17.66975 | S85: 13.8642 | T85: 14.1358 | U85: 13.8642 | V85: 14.1358 | W85: 12.8739 | X85: 13.1261 | Y85: 13.8642 | Z85: 14.1358 | AA85: 10.8933 | AB85: 11.1067 | AC85: 10.8933 | AD85: 11.1067 | AE85: 9.903 | AF85: 10.097 | AG85: 9.903 | AH85: 10.097 | AI85: 8.41755 | AJ85: 8.58245 | AK85: 7.42725 | AL85: 7.57275 | AM85: 7.42725 | AN85: 7.57275 | AO85: 4.45635 | AP85: 4.54365 | AQ85: 3.46605 | AR85: 3.53395 | AS85: 9 | AT85: 1 | AU85: 195 | AV85: 21 | AW85: 16 | AX85: 72 | AY85: 12
C86: 79 | E86: DISTRITO HUARAL | F86: 1160 | H86: 574.374 | I86: 585.626 | K86: 56.4471 | L86: 57.5529 | M86: 62.3889 | N86: 63.6111 | O86: 47.5344 | P86: 48.4656 | Q86: 41.5926 | R86: 42.4074 | S86: 45.5538 | T86: 46.4462 | U86: 40.10715 | V86: 40.89285 | W86: 35.6508 | X86: 36.3492 | Y86: 33.6702 | Z86: 34.3298 | AA86: 32.6799 | AB86: 33.3201 | AC86: 36.14595 | AD86: 36.85405 | AE86: 28.22355 | AF86: 28.77645 | AG86: 21.7866 | AH86: 22.2134 | AI86: 18.32055 | AJ86: 18.67945 | AK86: 27.23325 | AL86: 27.76675 | AM86: 18.8157 | AN86: 19.1843 | AO86: 13.36905 | AP86: 13.63095 | AQ86: 14.8545 | AR86: 15.1455 | AS86: 18 | AT86: 1 | AU86: 545 | AV86: 43 | AW86: 34 | AX86: 224 | AY86: 22
C87: 80 | D87: 150600 | E87: PUESTO SALUD ACOTAMA IHUARI (46.8%) | F87: 1160 | H87: 574.374 | I87: 585.626 | K87: 56.4471 | L87: 57.5529 | M87: 62.3889 | N87: 63.6111 | O87: 47.5344 | P87: 48.4656 | Q87: 41.5926 | R87: 42.4074 | S87: 45.5538 | T87: 46.4462 | U87: 40.10715 | V87: 40.89285 | W87: 35.6508 | X87: 36.3492 | Y87: 33.6702 | Z87: 34.3298 | AA87: 32.6799 | AB87: 33.3201 | AC87: 36.14595 | AD87: 36.85405 | AE87: 28.22355 | AF87: 28.77645 | AG87: 21.7866 | AH87: 22.2134 | AI87: 18.32055 | AJ87: 18.67945 | AK87: 27.23325 | AL87: 27.76675 | AM87: 18.8157 | AN87: 19.1843 | AO87: 13.36905 | AP87: 13.63095 | AQ87: 14.8545 | AR87: 15.1455 | AS87: 18 | AT87: 1 | AU87: 545 | AV87: 43 | AW87: 34 | AX87: 224 | AY87: 22
A88: 150606 | B88: 03 | C88: 81
C89: 82 | E89: MICRORED HUAURA | F89: =SUM(H89:I89) -> 26654 | H89: =Q89+S89+U89+W89+Y89+AA89+AC89+AE89+AG89+AI89+AK89+AM89+AO89+AQ89 -> 13197.7281 | I89: =R89+T89+V89+X89+Z89+AB89+AD89+AF89+AH89+AJ89+AL89+AN89+AP89+AR89 -> 13456.2719 | K89: =K13+K24 -> 1613.69385 | L89: =L13+L24 -> 1645.30615 | M89: 1710.74325 | N89: 1744.25675 | O89: 1969.7067 | P89: 2008.2933 | Q89: 2009.81385 | R89: 2049.18615 | S89: 1690.93725 | T89: 1724.06275 | U89: 1432.46895 | V89: 1460.53105 | W89: 1370.08005 | X89: 1396.91995 | Y89: 1244.31195 | Z89: 1268.68805 | AA89: 1095.2718 | AB89: 1116.7282 | AC89: 1012.0866 | AD89: 1031.9134 | AE89: 824.42475 | AF89: 840.57525 | AG89: 660.5301 | AH89: 673.4699 | AI89: 536.24745 | AJ89: 546.75255 | AK89: 446.13015 | AL89: 454.86985 | AM89: 395.62485 | AN89: 403.37515 | AO89: 244.10895 | AP89: 248.89105 | AQ89: 235.6914 | AR89: 240.3086 | AS89: 688 | AT89: 52 | AU89: 18441 | AV89: 1887 | AW89: 1947 | AX89: 8026 | AY89: 852
B90: 1 | C90: 83 | E90: MICRORED HUALMAY | F90: =SUM(H90:I90) -> 59389 | H90: =Q90+S90+U90+W90+Y90+AA90+AC90+AE90+AG90+AI90+AK90+AM90+AO90+AQ90 -> 29406.46335 | I90: =R90+T90+V90+X90+Z90+AB90+AD90+AF90+AH90+AJ90+AL90+AN90+AP90+AR90 -> 29982.53665 | K90: =K12+K16+K20+K44 -> 3313.04865 | L90: =L12+L16+L20+L44 -> 3377.95135 | M90: 3375.9327 | N90: 3442.0673 | O90: 3824.5386 | P90: 3899.4614 | Q90: 3711.14925 | R90: 3783.85075 | S90: 3454.1664 | T90: 3521.8336 | U90: 3041.70645 | V90: 3101.29355 | W90: 2997.14295 | X90: 3055.85705 | Y90: 2862.46215 | Z90: 2918.53785 | AA90: 2515.85715 | AB90: 2565.14285 | AC90: 2198.96115 | AD90: 2242.03885 | AE90: 1936.53165 | AF90: 1974.46835 | AG90: 1733.025 | AH90: 1766.975 | AI90: 1425.0417 | AJ90: 1452.9583 | AK90: 1152.21405 | AL90: 1174.78595 | AM90: 944.25105 | AN90: 962.74895 | AO90: 683.307 | AP90: 696.693 | AQ90: 750.6474 | AR90: 765.3526 | AS90: 1448 | AT90: 110 | AU90: 40366 | AV90: 3774 | AW90: 3676 | AX90: 17315 | AY90: 1794
B91: 2 | C91: 84 | E91: MICRORED SAYAN | F91: =SUM(H91:I91) -> 33905 | H91: 16788.06075 | I91: 17116.93925 | K91: =K30+K50+K77+K65 -> 2400.4872 | L91: =L30+L50+L77+L65 -> 2447.5128 | M91: 2448.51675 | N91: 2496.48325 | O91: 2520.3135 | P91: 2569.6865 | Q91: 2214.80595 | R91: 2258.19405 | S91: 2038.53255 | T91: 2078.46745 | U91: 1921.182 | V91: 1958.818 | W91: 1837.0065 | X91: 1872.9935 | Y91: 1755.30675 | Z91: 1789.69325 | AA91: 1360.6722 | AB91: 1387.3278 | AC91: 1316.60385 | AD91: 1342.39615 | AE91: 1012.58175 | AF91: 1032.41825 | AG91: 847.6968 | AH91: 864.3032 | AI91: 696.67605 | AJ91: 710.32395 | AK91: 600.61695 | AL91: 612.38305 | AM91: 511.48995 | AN91: 521.51005 | AO91: 371.85765 | AP91: 379.14235 | AQ91: 303.0318 | AR91: 308.9682 | AS91: 1016 | AT91: 76 | AU91: 23032 | AV91: 2453 | AW91: 2188 | AX91: 9339 | AY91: 1258
B92: 3 | C92: 85 | E92: MICRORED VEGUETA | F92: =SUM(H92:I92) -> 15204 | H92: 7528.2606 | I92: 7675.7394 | K92: =K58 -> 995.74665 | L92: =L58 -> 1015.25335 | M92: 913.0566 | N92: 930.9434 | O92: 1050.21315 | P92: 1070.78685 | Q92: 1074.4755 | R92: 1095.5245 | S92: 976.93095 | T92: 996.06905 | U92: 806.1042 | V92: 821.8958 | W92: 740.7444 | X92: 755.2556 | Y92: 676.3749 | Z92: 689.6251 | AA92: 607.54905 | AB92: 619.45095 | AC92: 581.80125 | AD92: 593.19875 | AE92: 469.89735 | AF92: 479.10265 | AG92: 405.0327 | AH92: 412.9673 | AI92: 338.18745 | AJ92: 344.81255 | AK92: 269.85675 | AL92: 275.14325 | AM92: 234.20595 | AN92: 238.79405 | AO92: 171.81705 | AP92: 175.18295 | AQ92: 175.2831 | AR92: 178.7169 | AS92: 465 | AT92: 35 | AU92: 10340 | AV92: 1006 | AW92: 1071 | AX92: 4386 | AY92: 576
B93: 4 | C93: 86 | E93: MICRORED CHURIN - OYON | F93: 15866 | H93: 7856.0499 | I93: 8009.9501 | K93: =K18+K35+K40+K67+K73+K75+K81+K83 -> 1096.75725 | L93: =L18+L35+L40+L67+L73+L75+L81+L83 -> 1118.24275 | M93: 1112.60205 | N93: 1134.39795 | O93: 1178.457 | P93: 1201.543 | Q93: 881.86215 | R93: 899.13785 | S93: 784.3176 | T93: 799.6824 | U93: 811.0557 | V93: 826.9443 | W93: 789.2691 | X93: 804.7309 | Y93: 829.37625 | Z93: 845.62375 | AA93: 646.17075 | AB93: 658.82925 | AC93: 621.9084 | AD93: 634.0916 | AE93: 528.8202 | AF93: 539.1798 | AG93: 433.25625 | AH93: 441.74375 | AI93: 391.66365 | AJ93: 399.33635 | AK93: 369.87705 | AL93: 377.12295 | AM93: 332.24565 | AN93: 338.75435 | AO93: 245.09925 | AP93: 249.90075 | AQ93: 191.1279 | AR93: 194.8721 | AS93: 491 | AT93: 36 | AU93: 10641 | AV93: 1129 | AW93: 844 | AX93: 3998 | AY93: 608

Sheet Pobla_EESS
D2: POBLACIÓN SEGÚN DISTRITOS Y EE.SS - 2013
D8: SIN MICRORED | K8: MICRORED HUALMAY
D9: DISTRITO | E9: POBLACIÓN | F9: EE.SS | G9: POBLACIÓN | H9: MASCULINO | I9: FEMENINO | K9: DISTRITO | L9: POBLACIÓN | M9: EE.SS | N9: POBLACIÓN | O9: MASCULINO | P9: FEMENINO
D10: HUACHO | E10: =G10 -> 44854 | F10: HOSPITAL DOCENTE HUACHO | G10: =VLOOKUP($F10,Poblacion!$E$8:$I$87,2,FALSE) -> 44854 | H10: =VLOOKUP($F10,Poblacion!$E$8:$I$87,4,FALSE) -> 22209.4581 | I10: =VLOOKUP($F10,Poblacion!$E$8:$I$87,5,FALSE) -> 22644.5419 | K10: HUALMAY | L10: =SUM(N10:N12) -> 28380 | M10: CENTRO SALUD HUALMAY | N10: =VLOOKUP($M10,Poblacion!$E$8:$I$87,2,FALSE) -> 14190 | O10: =VLOOKUP($M10,Poblacion!$E$8:$I$87,4,FALSE) -> 7026.1785 | P10: =VLOOKUP($M10,Poblacion!$E$8:$I$87,5,FALSE) -> 7163.8215
D11: HUACHO | F11: CLINICA SAN PEDRO | G11: 0 | K11: HUALMAY | M11: PUESTO SALUD DGO.MANDAMIENTO | N11: =VLOOKUP($M11,Poblacion!$E$8:$I$87,2,FALSE) -> 9933 | O11: =VLOOKUP($M11,Poblacion!$E$8:$I$87,4,FALSE) -> 4918.32495 | P11: =VLOOKUP($M11,Poblacion!$E$8:$I$87,5,FALSE) -> 5014.67505
D12: HUACHO | F12: ESSALUD GUSTAVO LA NATA | G12: 0 | K12: HUALMAY | M12: PUESTO SALUD CAMPO ALEGRE | N12: =VLOOKUP($M12,Poblacion!$E$8:$I$87,2,FALSE) -> 4257 | O12: =VLOOKUP($M12,Poblacion!$E$8:$I$87,4,FALSE) -> 2107.85355 | P12: =VLOOKUP($M12,Poblacion!$E$8:$I$87,5,FALSE) -> 2149.14645
D13: HUACHO | F13: CLINICA SAN BARTOLOME | G13: 0 | K13: S.MARIA | L13: =SUM(N13:N17) -> 32174 | M13: CENTRO SALUD SANTA MARIA | N13: =VLOOKUP($M13,Poblacion!$E$8:$I$87,2,FALSE) -> 9331 | O13: =VLOOKUP($M13,Poblacion!$E$8:$I$87,4,FALSE) -> 4620.24465 | P13: =VLOOKUP($M13,Poblacion!$E$8:$I$87,5,FALSE) -> 4710.75535
D14: HUACHO | F14: GOLD ESTANDAR EIRL. | G14: 0 | K14: S.MARIA | M14: PUESTO SALUD CHONTA | N14: =VLOOKUP($M14,Poblacion!$E$8:$I$87,2,FALSE) -> 4826 | O14: =VLOOKUP($M14,Poblacion!$E$8:$I$87,4,FALSE) -> 2389.5939 | P14: =VLOOKUP($M14,Poblacion!$E$8:$I$87,5,FALSE) -> 2436.4061
D15: CARQUIN | F15: INSITUTO NACIONAL PENITENCIARIO CARQUIN | G15: 0 | K15: S.MARIA | M15: PUESTO SALUD ZAPATA | N15: =VLOOKUP($M15,Poblacion!$E$8:$I$87,2,FALSE) -> 1930 | O15: =VLOOKUP($M15,Poblacion!$E$8:$I$87,4,FALSE) -> 955.6395 | P15: =VLOOKUP($M15,Poblacion!$E$8:$I$87,5,FALSE) -> 974.3605
F16: OTROS ESTABLECIMIENTOS | G16: 0 | K16: S.MARIA | M16: PUESTO SALUD AMADO VELASQUEZ | N16: =VLOOKUP($M16,Poblacion!$E$8:$I$87,2,FALSE) -> 8365 | O16: =VLOOKUP($M16,Poblacion!$E$8:$I$87,4,FALSE) -> 4141.92975 | P16: =VLOOKUP($M16,Poblacion!$E$8:$I$87,5,FALSE) -> 4223.07025
D17: TOTAL SIN MICRORED | G17: =SUM(G10:G16) -> 44854 | H17: =SUM(H10:H16) -> 22209.4581 | I17: =SUM(I10:I16) -> 22644.5419 | K17: S.MARIA | M17: PUESTO SALUD SAN BARTOLOME | N17: =VLOOKUP($M17,Poblacion!$E$8:$I$87,2,FALSE) -> 7722 | O17: =VLOOKUP($M17,Poblacion!$E$8:$I$87,4,FALSE) -> 3823.5483 | P17: =VLOOKUP($M17,Poblacion!$E$8:$I$87,5,FALSE) -> 3898.4517
D18: = | K18: CARQUIN | L18: =SUM(N18) -> 6670 | M18: CENTRO SALUD CARQUIN | N18: =VLOOKUP($M18,Poblacion!$E$8:$I$87,2,FALSE) -> 6670 | O18: =VLOOKUP($M18,Poblacion!$E$8:$I$87,4,FALSE) -> 3302.6505 | P18: =VLOOKUP($M18,Poblacion!$E$8:$I$87,5,FALSE) -> 3367.3495
K19: HUACHO | L19: =SUM(N19) -> 13398 | M19: CENTRO SALUD MANZANARES | N19: =VLOOKUP($M19,Poblacion!$E$8:$I$87,2,FALSE) -> 13398 | O19: =VLOOKUP($M19,Poblacion!$E$8:$I$87,4,FALSE) -> 6634.0197 | P19: =VLOOKUP($M19,Poblacion!$E$8:$I$87,5,FALSE) -> 6763.9803
K20: TOTAL MCR HUALMAY | M20: TOTAL MICRORED HUALMAY | N20: =SUM(N10:N19) -> 80622 | O20: =SUM(O10:O19) -> 39919.9833 | P20: =SUM(P10:P19) -> 40702.0167
D24: MICRORED HUAURA | K24: MICRORED VEGUETA
D25: DISTRITO | E25: POBLACIÓN | F25: EE.SS | G25: POBLACIÓN | H25: MASCULINO | I25: FEMENINO | K25: DISTRITO | L25: POBLACIÓN | M25: EE.SS | N25: POBLACIÓN | O25: MASCULINO | P25: FEMENINO
D26: HUAURA | E26: =SUM(G26:G30) -> 34561 | F26: CENTRO SALUD HUAURA | G26: =VLOOKUP($F26,Poblacion!$E$8:$I$87,2,FALSE) -> 15829 | H26: =VLOOKUP($F26,Poblacion!$E$8:$I$87,4,FALSE) -> 7837.72935 | I26: =VLOOKUP($F26,Poblacion!$E$8:$I$87,5,FALSE) -> 7991.27065 | K26: VEGUETA | L26: =SUM(N26:N31) -> 21180 | M26: CENTRO SALUD VEGUETA | N26: =VLOOKUP($M26,Poblacion!$E$8:$I$87,2,FALSE) -> 6354 | O26: =VLOOKUP($M26,Poblacion!$E$8:$I$87,4,FALSE) -> 3146.1831 | P26: =VLOOKUP($M26,Poblacion!$E$8:$I$87,5,FALSE) -> 3207.8169
D27: HUAURA | F27: CENTRO MAT. INF. EL SOCORRO | G27: =VLOOKUP($F27,Poblacion!$E$8:$I$87,2,FALSE) -> 12476 | H27: =VLOOKUP($F27,Poblacion!$E$8:$I$87,4,FALSE) -> 6177.4914 | I27: =VLOOKUP($F27,Poblacion!$E$8:$I$87,5,FALSE) -> 6298.5086 | K27: VEGUETA | M27: PUESTO SALUD MAZO | N27: =VLOOKUP($M27,Poblacion!$E$8:$I$87,2,FALSE) -> 2118 | O27: =VLOOKUP($M27,Poblacion!$E$8:$I$87,4,FALSE) -> 1048.7277 | P27: =VLOOKUP($M27,Poblacion!$E$8:$I$87,5,FALSE) -> 1069.2723
D28: HUAURA | F28: PUESTO SALUD HUMAYA | G28: =VLOOKUP($F28,Poblacion!$E$8:$I$87,2,FALSE) -> 3698 | H28: =VLOOKUP($F28,Poblacion!$E$8:$I$87,4,FALSE) -> 1831.0647 | I28: =VLOOKUP($F28,Poblacion!$E$8:$I$87,5,FALSE) -> 1866.9353 | K28: VEGUETA | M28: PUESTO SALUD PRIMAVERA | N28: =VLOOKUP($M28,Poblacion!$E$8:$I$87,2,FALSE) -> 2330 | O28: =VLOOKUP($M28,Poblacion!$E$8:$I$87,4,FALSE) -> 1153.6995 | P28: =VLOOKUP($M28,Poblacion!$E$8:$I$87,5,FALSE) -> 1176.3005
D29: HUAURA | F29: PUESTO SALUD VILCAHUAURA | G29: =VLOOKUP($F29,Poblacion!$E$8:$I$87,2,FALSE) -> 2074 | H29: =VLOOKUP($F29,Poblacion!$E$8:$I$87,4,FALSE) -> 1026.9411 | I29: =VLOOKUP($F29,Poblacion!$E$8:$I$87,5,FALSE) -> 1047.0589 | K29: VEGUETA | M29: PUESTO SALUD JOSE C. MARIATEGUI | N29: =VLOOKUP($M29,Poblacion!$E$8:$I$87,2,FALSE) -> 5083 | O29: =VLOOKUP($M29,Poblacion!$E$8:$I$87,4,FALSE) -> 2516.84745 | P29: =VLOOKUP($M29,Poblacion!$E$8:$I$87,5,FALSE) -> 2566.15255
D30: HUAURA | F30: PUESTO SALUD PEÑICO | G30: =VLOOKUP($F30,Poblacion!$E$8:$I$87,2,FALSE) -> 484 | H30: =VLOOKUP($F30,Poblacion!$E$8:$I$87,4,FALSE) -> 239.6526 | I30: =VLOOKUP($F30,Poblacion!$E$8:$I$87,5,FALSE) -> 244.3474 | K30: VEGUETA | M30: PUESTO SALUD MEDIO MUNDO | N30: =VLOOKUP($M30,Poblacion!$E$8:$I$87,2,FALSE) -> 4447 | O30: =VLOOKUP($M30,Poblacion!$E$8:$I$87,4,FALSE) -> 2201.93205 | P30: =VLOOKUP($M30,Poblacion!$E$8:$I$87,5,FALSE) -> 2245.06795
D31: AMBAR | E31: =SUM(G31:G32) -> 2785 | F31: CENTRO SALUD AMBAR | G31: =VLOOKUP($F31,Poblacion!$E$8:$I$87,2,FALSE) -> 1766 | H31: =VLOOKUP($F31,Poblacion!$E$8:$I$87,4,FALSE) -> 874.4349 | I31: =VLOOKUP($F31,Poblacion!$E$8:$I$87,5,FALSE) -> 891.5651 | K31: VEGUETA | M31: PUESTO SALUD TIROLER | N31: =VLOOKUP($M31,Poblacion!$E$8:$I$87,2,FALSE) -> 848 | O31: =VLOOKUP($M31,Poblacion!$E$8:$I$87,4,FALSE) -> 419.8872 | P31: =VLOOKUP($M31,Poblacion!$E$8:$I$87,5,FALSE) -> 428.1128
D32: AMBAR | F32: PUESTO SALUD AYNACA | G32: =VLOOKUP($F32,Poblacion!$E$8:$I$87,2,FALSE) -> 1019 | H32: =VLOOKUP($F32,Poblacion!$E$8:$I$87,4,FALSE) -> 504.55785 | I32: =VLOOKUP($F32,Poblacion!$E$8:$I$87,5,FALSE) -> 514.44215 | K32: TOTAL MCR VEGUETA | N32: =SUM(N26:N31) -> 21180 | O32: =SUM(O26:O31) -> 10487.277 | P32: =SUM(P26:P31) -> 10692.723
D33: TOTAL MCR HUAURA | F33: TOTAL MICRORED HUAURA | G33: 37355 | H33: 18496.32825 | I33: 18858.67175
D38: MICRORED SAYAN | K38: MICRORED CHURIN OYÓN
D39: DISTRITO | E39: POBLACIÓN | F39: EE.SS | G39: POBLACIÓN | H39: MASCULINO | I39: FEMENINO | K39: DISTRITO | L39: POBLACIÓN | M39: EE.SS | N39: POBLACIÓN | O39: MASCULINO | P39: FEMENINO
D40: SAYAN | E40: =SUM(G40:G46) -> 23740 | F40: CENTRO SALUD SAYAN | G40: =VLOOKUP($F40,Poblacion!$E$8:$I$87,2,FALSE) -> 9496 | H40: =VLOOKUP($F40,Poblacion!$E$8:$I$87,4,FALSE) -> 4701.9444 | I40: =VLOOKUP($F40,Poblacion!$E$8:$I$87,5,FALSE) -> 4794.0556 | K40: PACHANGARA | L40: =SUM(N40:N42) -> 3434 | M40: CENTRO SALUD CHURIN | N40: =VLOOKUP(M40,Poblacion!$E$5:$I$88,2,FALSE) -> 2713 | O40: =VLOOKUP(M40,Poblacion!$E$5:$I$88,4,FALSE) -> 1343.34195 | P40: =VLOOKUP(M40,Poblacion!$E$5:$I$88,5,FALSE) -> 1369.65805
D41: SAYAN | F41: CENTRO SALUD 9 DE OCTUBRE | G41: =VLOOKUP($F41,Poblacion!$E$8:$I$87,2,FALSE) -> 4985 | H41: =VLOOKUP($F41,Poblacion!$E$8:$I$87,4,FALSE) -> 2468.32275 | I41: =VLOOKUP($F41,Poblacion!$E$8:$I$87,5,FALSE) -> 2516.67725 | K41: PACHANGARA | M41: PUESTO SALUD HUANCAHUASI | N41: =VLOOKUP(M41,Poblacion!$E$5:$I$88,2,FALSE) -> 309 | O41: =VLOOKUP(M41,Poblacion!$E$5:$I$88,4,FALSE) -> 153.00135 | P41: =VLOOKUP(M41,Poblacion!$E$5:$I$88,5,FALSE) -> 155.99865
D42: SAYAN | F42: PUESTO SALUD CHAMBARA | G42: =VLOOKUP($F42,Poblacion!$E$8:$I$87,2,FALSE) -> 950 | H42: =VLOOKUP($F42,Poblacion!$E$8:$I$87,4,FALSE) -> 470.3925 | I42: =VLOOKUP($F42,Poblacion!$E$8:$I$87,5,FALSE) -> 479.6075 | K42: PACHANGARA | M42: PUESTO SALUD PACHANGARA | N42: =VLOOKUP(M42,Poblacion!$E$5:$I$88,2,FALSE) -> 412 | O42: =VLOOKUP(M42,Poblacion!$E$5:$I$88,4,FALSE) -> 204.0018 | P42: =VLOOKUP(M42,Poblacion!$E$5:$I$88,5,FALSE) -> 207.9982
D43: SAYAN | F43: PUESTO SALUD LA MERCED | G43: =VLOOKUP($F43,Poblacion!$E$8:$I$87,2,FALSE) -> 1187 | H43: =VLOOKUP($F43,Poblacion!$E$8:$I$87,4,FALSE) -> 587.74305 | I43: =VLOOKUP($F43,Poblacion!$E$8:$I$87,5,FALSE) -> 599.25695 | K43: OYON | L43: =SUM(N43:N47) -> 14141 | M43: CENTRO SALUD OYON | N43: =VLOOKUP(M43,Poblacion!$E$5:$I$88,2,FALSE) -> 11370 | O43: =VLOOKUP(M43,Poblacion!$E$5:$I$88,4,FALSE) -> 5629.8555 | P43: =VLOOKUP(M43,Poblacion!$E$5:$I$88,5,FALSE) -> 5740.1445
D44: SAYAN | F44: PUESTO SALUD LA VILLA | G44: =VLOOKUP($F44,Poblacion!$E$8:$I$87,2,FALSE) -> 6172 | H44: =VLOOKUP($F44,Poblacion!$E$8:$I$87,4,FALSE) -> 3056.0658 | I44: =VLOOKUP($F44,Poblacion!$E$8:$I$87,5,FALSE) -> 3115.9342 | K44: OYON | M44: PUESTO SALUD MALLAY | N44: =VLOOKUP(M44,Poblacion!$E$5:$I$88,2,FALSE) -> 1131 | O44: =VLOOKUP(M44,Poblacion!$E$5:$I$88,4,FALSE) -> 560.01465 | P44: =VLOOKUP(M44,Poblacion!$E$5:$I$88,5,FALSE) -> 570.98535
D45: SAYAN | F45: PUESTO SALUD EL AHOARCADO | G45: =VLOOKUP($F45,Poblacion!$E$8:$I$87,2,FALSE) -> 475 | H45: =VLOOKUP($F45,Poblacion!$E$8:$I$87,4,FALSE) -> 235.19625 | I45: =VLOOKUP($F45,Poblacion!$E$8:$I$87,5,FALSE) -> 239.80375 | K45: OYON | M45: PUESTO SALUD NAVA | N45: =VLOOKUP(M45,Poblacion!$E$5:$I$88,2,FALSE) -> 85 | O45: =VLOOKUP(M45,Poblacion!$E$5:$I$88,4,FALSE) -> 42.08775 | P45: =VLOOKUP(M45,Poblacion!$E$5:$I$88,5,FALSE) -> 42.91225
D46: SAYAN | F46: PUESTO SALUD LA UNION | G46: =VLOOKUP($F46,Poblacion!$E$8:$I$87,2,FALSE) -> 475 | H46: =VLOOKUP($F46,Poblacion!$E$8:$I$87,4,FALSE) -> 235.19625 | I46: =VLOOKUP($F46,Poblacion!$E$8:$I$87,5,FALSE) -> 239.80375 | K46: OYON | M46: PUESTO SALUD TINTA | N46: =VLOOKUP(M46,Poblacion!$E$5:$I$88,2,FALSE) -> 424 | O46: =VLOOKUP(M46,Poblacion!$E$5:$I$88,4,FALSE) -> 209.9436 | P46: =VLOOKUP(M46,Poblacion!$E$5:$I$88,5,FALSE) -> 214.0564
D47: L.PRADO | E47: =SUM(G47:G50) -> 2007 | F47: PUESTO SALUD AUQUIMARCA | G47: =VLOOKUP($F47,Poblacion!$E$8:$I$87,2,FALSE) -> 100 | H47: =VLOOKUP($F47,Poblacion!$E$8:$I$87,4,FALSE) -> 49.515 | I47: =VLOOKUP($F47,Poblacion!$E$8:$I$87,5,FALSE) -> 50.485 | K47: OYON | M47: PUESTO SALUD RAPAZ | N47: =VLOOKUP(M47,Poblacion!$E$5:$I$88,2,FALSE) -> 1131 | O47: =VLOOKUP(M47,Poblacion!$E$5:$I$88,4,FALSE) -> 560.01465 | P47: =VLOOKUP(M47,Poblacion!$E$5:$I$88,5,FALSE) -> 570.98535
D48: L.PRADO | F48: PUESTO SALUD PARAN | G48: =VLOOKUP($F48,Poblacion!$E$8:$I$87,2,FALSE) -> 1004 | H48: =VLOOKUP($F48,Poblacion!$E$8:$I$87,4,FALSE) -> 497.1306 | I48: =VLOOKUP($F48,Poblacion!$E$8:$I$87,5,FALSE) -> 506.8694 | K48: ANDAJES | L48: =N48 -> 1053 | M48: PUESTO SALUD ANDAJES | N48: =VLOOKUP(M48,Poblacion!$E$5:$I$88,2,FALSE) -> 1053 | O48: =VLOOKUP(M48,Poblacion!$E$5:$I$88,4,FALSE) -> 521.39295 | P48: =VLOOKUP(M48,Poblacion!$E$5:$I$88,5,FALSE) -> 531.60705
D49: L.PRADO | F49: PUESTO SALUD SANTA CRUZ | G49: =VLOOKUP($F49,Poblacion!$E$8:$I$87,2,FALSE) -> 442 | H49: =VLOOKUP($F49,Poblacion!$E$8:$I$87,4,FALSE) -> 218.8563 | I49: =VLOOKUP($F49,Poblacion!$E$8:$I$87,5,FALSE) -> 223.1437 | K49: CAUJUL | L49: =N49 -> 1013 | M49: PUESTO SALUD CAUJUL | N49: =VLOOKUP(M49,Poblacion!$E$5:$I$88,2,FALSE) -> 1013 | O49: =VLOOKUP(M49,Poblacion!$E$5:$I$88,4,FALSE) -> 501.58695 | P49: =VLOOKUP(M49,Poblacion!$E$5:$I$88,5,FALSE) -> 511.41305
D50: L.PRADO | F50: PUESTO SALUD HUANANGUI | G50: =VLOOKUP($F50,Poblacion!$E$8:$I$87,2,FALSE) -> 461 | H50: =VLOOKUP($F50,Poblacion!$E$8:$I$87,4,FALSE) -> 228.26415 | I50: =VLOOKUP($F50,Poblacion!$E$8:$I$87,5,FALSE) -> 232.73585 | K50: NAVAN | L50: 1170 | M50: PUESTO SALUD NAVAN | N50: =VLOOKUP(M50,Poblacion!$E$5:$I$88,2,FALSE) -> 1170 | O50: =VLOOKUP(M50,Poblacion!$E$5:$I$88,4,FALSE) -> 579.3255 | P50: =VLOOKUP(M50,Poblacion!$E$5:$I$88,5,FALSE) -> 590.6745
D51: COCHAMARCA | E51: =SUM(G51:G53) -> 1593 | F51: PUESTO SALUD COCHAMARCA | G51: =VLOOKUP($F51,Poblacion!$E$8:$I$87,2,FALSE) -> 637 | H51: =VLOOKUP($F51,Poblacion!$E$8:$I$87,4,FALSE) -> 315.41055 | I51: =VLOOKUP($F51,Poblacion!$E$8:$I$87,5,FALSE) -> 321.58945 | K51: CHECRAS | L51: 1716 | M51: PUESTO SALUD PUÑUN | N51: =VLOOKUP(M51,Poblacion!$E$5:$I$88,2,FALSE) -> 1716 | O51: =VLOOKUP(M51,Poblacion!$E$5:$I$88,4,FALSE) -> 849.6774 | P51: =VLOOKUP(M51,Poblacion!$E$5:$I$88,5,FALSE) -> 866.3226
D52: COCHAMARCA | F52: PUESTO SALUD COLCAPAMPA | G52: =VLOOKUP($F52,Poblacion!$E$8:$I$87,2,FALSE) -> 717 | H52: =VLOOKUP($F52,Poblacion!$E$8:$I$87,4,FALSE) -> 355.02255 | I52: =VLOOKUP($F52,Poblacion!$E$8:$I$87,5,FALSE) -> 361.97745 | K52: PACCHO | L52: =SUM(N52:N55) -> 2187 | M52: CENTRO SALUD PACCHO | N52: =VLOOKUP(M52,Poblacion!$E$5:$I$88,2,FALSE) -> 831 | O52: =VLOOKUP(M52,Poblacion!$E$5:$I$88,4,FALSE) -> 411.46965 | P52: =VLOOKUP(M52,Poblacion!$E$5:$I$88,5,FALSE) -> 419.53035
D53: COCHAMARCA | F53: PUESTO SALUD YARUCAYA | G53: =VLOOKUP($F53,Poblacion!$E$8:$I$87,2,FALSE) -> 239 | H53: =VLOOKUP($F53,Poblacion!$E$8:$I$87,4,FALSE) -> 118.34085 | I53: =VLOOKUP($F53,Poblacion!$E$8:$I$87,5,FALSE) -> 120.65915 | K53: PACCHO | M53: PUESTO SALUD LACSANGA | N53: =VLOOKUP(M53,Poblacion!$E$5:$I$88,2,FALSE) -> 459 | O53: =VLOOKUP(M53,Poblacion!$E$5:$I$88,4,FALSE) -> 227.27385 | P53: =VLOOKUP(M53,Poblacion!$E$5:$I$88,5,FALSE) -> 231.72615
D54: IHUARI - ACOTAMA | E54: =SUM(G54) -> 1160 | F54: PUESTO SALUD ACOTAMA IHUARI (46.8%) | G54: =VLOOKUP($F54,Poblacion!$E$8:$I$87,2,FALSE) -> 1160 | H54: =VLOOKUP($F54,Poblacion!$E$8:$I$87,4,FALSE) -> 574.374 | I54: =VLOOKUP($F54,Poblacion!$E$8:$I$87,5,FALSE) -> 585.626 | K54: PACCHO | M54: PUESTO SALUD AYARANGA | N54: =VLOOKUP(M54,Poblacion!$E$5:$I$88,2,FALSE) -> 416 | O54: =VLOOKUP(M54,Poblacion!$E$5:$I$88,4,FALSE) -> 205.9824 | P54: =VLOOKUP(M54,Poblacion!$E$5:$I$88,5,FALSE) -> 210.0176
D55: TOTAL MICRORED SAYAN | G55: 1370 | H55: 678.3555 | I55: 691.6445 | K55: PACCHO | M55: PUESTO SALD MUZGA | N55: =VLOOKUP(M55,Poblacion!$E$5:$I$88,2,FALSE) -> 481 | O55: =VLOOKUP(M55,Poblacion!$E$5:$I$88,4,FALSE) -> 238.16715 | P55: =VLOOKUP(M55,Poblacion!$E$5:$I$88,5,FALSE) -> 242.83285
K56: S.LEONOR | L56: =SUM(N56:N58) -> 1486 | M56: CENTRO SALUD CHIUCHIN | N56: =VLOOKUP(M56,Poblacion!$E$5:$I$88,2,FALSE) -> 981 | O56: =VLOOKUP(M56,Poblacion!$E$5:$I$88,4,FALSE) -> 485.74215 | P56: =VLOOKUP(M56,Poblacion!$E$5:$I$88,5,FALSE) -> 495.25785
K57: S.LEONOR | M57: PUESTO SALUD PARQUIN | N57: =VLOOKUP(M57,Poblacion!$E$5:$I$88,2,FALSE) -> 416 | O57: =VLOOKUP(M57,Poblacion!$E$5:$I$88,4,FALSE) -> 205.9824 | P57: =VLOOKUP(M57,Poblacion!$E$5:$I$88,5,FALSE) -> 210.0176
K58: S.LEONOR | M58: PUESTO SALUD JUCUL | N58: =VLOOKUP(M58,Poblacion!$E$5:$I$88,2,FALSE) -> 89 | O58: =VLOOKUP(M58,Poblacion!$E$5:$I$88,4,FALSE) -> 44.06835 | P58: =VLOOKUP(M58,Poblacion!$E$5:$I$88,5,FALSE) -> 44.93165
K59: TOTAL MICRORED CHURIN - OYON | N59: =SUM(N40:N58) -> 26200 | O59: =SUM(O40:O58) -> 12972.93 | P59: =SUM(P40:P58) -> 13227.07
